{"text_format":"1","workbook":"xlsx","n_sheets":4,"sheets":["外幣匯款(FCY_Payment)","匯款性質(Purpose of Payment)","parameter","操作說明(Instructions) "],"not_rendered":{"charts":0,"images":5,"macros":1,"external_links":0,"defined_names":1,"comments":1,"pivot_tables":0},"unopened":[],"bounds":{"document_bytes":16777216,"sheet_cells":100000,"rows_first":2000,"rows_last":500,"rows_between":2000,"halvings":0,"cell_chars":16384,"cell_head_chars":4096},"cells_cut":0,"cells_raw":0,"read":"whole","date_system":"1900"}

{"sheet":"外幣匯款(FCY_Payment)","index":0,"n_rows":993,"n_cols":23,"rows_kept":993,"cut":false,"hidden":false,"merged":[[0,0,1,0],[0,6,0,7],[1,6,1,7],[2,0,2,10],[0,11,0,14]]}
["說明 (橘色為必填資訊) \nRemark (orange fields are mandatory)","交易生效日\nPayment date (DDMMYYYY)","付款人扣款帳號\n(一個檔案限用一個扣款帳號)\nDebit Account Number (One file for one debit account)","幣別\nCurrency","付款人公司編號\nOrg ID","付款人戶名\nPayer Name","手續費扣款帳戶\n(Debit Account Number for Bank Charge)",null,"總筆數\nToal number of transaction",null,null,"最新央行申報匯款性質請參考央行官網: \nhttps://www.cbc.gov.tw/tw/lp-378-1.html",null,null,null,"TT","17"]
[null,"04052021","602799XXXXX","USD","TWGTS","黛咪股份有限公司","6027992XXXX",null,{"$f":"COUNTIF(A:A,\"Y\")","v":2}]
["上方  付款人資訊 (Above: Payer Information)      下方 受款人資訊 (Below: Beneficiary Information)"]
["\n資料欄位\nData","受款人銀行\n(8碼或11碼)\nSWIFTCODE\n(8 or 11 digits)","受款人帳號\nBeneficiary Account Number","幣別\nCurrency","匯款金額\nAmount","受款人戶名 (英文)\nBeneficiary Name (English)","央行申報\n匯款性質\nPurpose of Payment","細分類\nSub Purpose Code","付款性質Original Purpose Code","手續費\n付款方\nBank Charge","\nPayee Role\n(1:本人\n2.他人\n**匯款至國內選1或2, 匯款至國外或OBU請保留空值)",null,"客戶參考編號\nCustomer Reference","受款人地址\nBeneficiary Address","付款明細\nPayment Details (78 characters)","受款人通知(電子郵件)\nBeneficiary Advice (email)","發票明細\nInvoice Details","Routing CODE (ABA)","其他指示\nInstructions to Bank","銀行\n專用\nBank use only","匯至國內/匯至國外\nDomestic/ Overseas Outward Remittance","中轉行\nIntermediary Bank SWIFT BIC","補充性質\nSupplementary Info"]
["Y","TSIBTWTP","1234567891222","USD",0.2,"Demi LEE","693","C",449,"OUR","1",null,"Ref1",null,null,"demileecc@dbs.com","Bonus",null,null,null,"匯至國內(Domestic Remittance)","BKCHHKHHXXX","補充說明性質於此處"]
["Y","TACBTWTP524","1212123333444","USD",0.2,"Chu LEE","693","E",192,"OUR","2",null,"Ref2",null,null,"demileecc@dbs.com"]
[]
[null,null,null,null,null,null,null,null,null,null,null,null,null,null,null,null,null,null,null,{"$f":"IF($D$2=D8,1,0)","v":0}]
[null,null,null,null,null,null,null,null,null,null,null,null,null,null,null,null,null,null,null,0]
[null,null,null,null,null,null,null,null,null,null,null,null,null,null,null,null,null,null,null,0]
[null,null,null,null,null,null,null,null,null,null,null,null,null,null,null,null,null,null,null,0]
[null,null,null,null,null,null,null,null,null,null,null,null,null,null,null,null,null,null,null,0]
[null,null,null,null,null,null,null,null,null,null,null,null,null,null,null,null,null,null,null,0]
[null,null,null,null,null,null,null,null,null,null,null,null,null,null,null,null,null,null,null,0]
[null,null,null,null,null,null,null,null,null,null,null,null,null,null,null,null,null,null,null,0]
[null,null,null,null,null,null,null,null,null,null,null,null,null,null,null,null,null,null,null,0]
[null,null,null,null,null,null,null,null,null,null,null,null,null,null,null,null,null,null,null,0]
[null,null,null,null,null,null,null,null,null,null,null,null,null,null,null,null,null,null,null,0]
[null,null,null,null,null,null,null,null,null,null,null,null,null,null,null,null,null,null,null,0]
[null,null,null,null,null,null,null,null,null,null,null,null,null,null,null,null,null,null,null,0]
[null,null,null,null,null,null,null,null,null,null,null,null,null,null,null,null,null,null,null,0]
[null,null,null,null,null,null,null,null,null,null,null,null,null,null,null,null,null,null,null,0]
[null,null,null,null,null,null,null,null,null,null,null,null,null,null,null,null,null,null,null,0]
[null,null,null,null,null,null,null,null,null,null,null,null,null,null,null,null,null,null,null,0]
[null,null,null,null,null,null,null,null,null,null,null,null,null,null,null,null,null,null,null,0]
[null,null,null,null,null,null,null,null,null,null,null,null,null,null,null,null,null,null,null,0]
[null,null,null,null,null,null,null,null,null,null,null,null,null,null,null,null,null,null,null,0]
[null,null,null,null,null,null,null,null,null,null,null,null,null,null,null,null,null,null,null,0]
[null,null,null,null,null,null,null,null,null,null,null,null,null,null,null,null,null,null,null,0]
[null,null,null,null,null,null,null,null,null,null,null,null,null,null,null,null,null,null,null,0]
[null,null,null,null,null,null,null,null,null,null,null,null,null,null,null,null,null,null,null,0]
[null,null,null,null,null,null,null,null,null,null,null,null,null,null,null,null,null,null,null,0]
[null,null,null,null,null,null,null,null,null,null,null,null,null,null,null,null,null,null,null,0]
[null,null,null,null,null,null,null,null,null,null,null,null,null,null,null,null,null,null,null,0]
[null,null,null,null,null,null,null,null,null,null,null,null,null,null,null,null,null,null,null,0]
[null,null,null,null,null,null,null,null,null,null,null,null,null,null,null,null,null,null,null,0]
[null,null,null,null,null,null,null,null,null,null,null,null,null,null,null,null,null,null,null,0]
[null,null,null,null,null,null,null,null,null,null,null,null,null,null,null,null,null,null,null,0]
[null,null,null,null,null,null,null,null,null,null,null,null,null,null,null,null,null,null,null,0]
[null,null,null,null,null,null,null,null,null,null,null,null,null,null,null,null,null,null,null,0]
[null,null,null,null,null,null,null,null,null,null,null,null,null,null,null,null,null,null,null,0]
[null,null,null,null,null,null,null,null,null,null,null,null,null,null,null,null,null,null,null,0]
[null,null,null,null,null,null,null,null,null,null,null,null,null,null,null,null,null,null,null,0]
[null,null,null,null,null,null,null,null,null,null,null,null,null,null,null,null,null,null,null,0]
[null,null,null,null,null,null,null,null,null,null,null,null,null,null,null,null,null,null,null,0]
[null,null,null,null,null,null,null,null,null,null,null,null,null,null,null,null,null,null,null,0]
[null,null,null,null,null,null,null,null,null,null,null,null,null,null,null,null,null,null,null,0]
[null,null,null,null,null,null,null,null,null,null,null,null,null,null,null,null,null,null,null,0]
[null,null,null,null,null,null,null,null,null,null,null,null,null,null,null,null,null,null,null,0]
[null,null,null,null,null,null,null,null,null,null,null,null,null,null,null,null,null,null,null,0]
[null,null,null,null,null,null,null,null,null,null,null,null,null,null,null,null,null,null,null,0]
[null,null,null,null,null,null,null,null,null,null,null,null,null,null,null,null,null,null,null,0]
[null,null,null,null,null,null,null,null,null,null,null,null,null,null,null,null,null,null,null,0]
[null,null,null,null,null,null,null,null,null,null,null,null,null,null,null,null,null,null,null,0]
[null,null,null,null,null,null,null,null,null,null,null,null,null,null,null,null,null,null,null,0]
[null,null,null,null,null,null,null,null,null,null,null,null,null,null,null,null,null,null,null,0]
[null,null,null,null,null,null,null,null,null,null,null,null,null,null,null,null,null,null,null,0]
[null,null,null,null,null,null,null,null,null,null,null,null,null,null,null,null,null,null,null,0]
[null,null,null,null,null,null,null,null,null,null,null,null,null,null,null,null,null,null,null,0]
[null,null,null,null,null,null,null,null,null,null,null,null,null,null,null,null,null,null,null,0]
[null,null,null,null,null,null,null,null,null,null,null,null,null,null,null,null,null,null,null,0]
[null,null,null,null,null,null,null,null,null,null,null,null,null,null,null,null,null,null,null,0]
[null,null,null,null,null,null,null,null,null,null,null,null,null,null,null,null,null,null,null,0]
[null,null,null,null,null,null,null,null,null,null,null,null,null,null,null,null,null,null,null,{"$f":"IF($D$2=D64,1,0)","v":0}]
[null,null,null,null,null,null,null,null,null,null,null,null,null,null,null,null,null,null,null,0]
[null,null,null,null,null,null,null,null,null,null,null,null,null,null,null,null,null,null,null,0]
[null,null,null,null,null,null,null,null,null,null,null,null,null,null,null,null,null,null,null,0]
[null,null,null,null,null,null,null,null,null,null,null,null,null,null,null,null,null,null,null,0]
[null,null,null,null,null,null,null,null,null,null,null,null,null,null,null,null,null,null,null,0]
[null,null,null,null,null,null,null,null,null,null,null,null,null,null,null,null,null,null,null,0]
[null,null,null,null,null,null,null,null,null,null,null,null,null,null,null,null,null,null,null,0]
[null,null,null,null,null,null,null,null,null,null,null,null,null,null,null,null,null,null,null,0]
[null,null,null,null,null,null,null,null,null,null,null,null,null,null,null,null,null,null,null,0]
[null,null,null,null,null,null,null,null,null,null,null,null,null,null,null,null,null,null,null,0]
[null,null,null,null,null,null,null,null,null,null,null,null,null,null,null,null,null,null,null,0]
[null,null,null,null,null,null,null,null,null,null,null,null,null,null,null,null,null,null,null,0]
[null,null,null,null,null,null,null,null,null,null,null,null,null,null,null,null,null,null,null,0]
[null,null,null,null,null,null,null,null,null,null,null,null,null,null,null,null,null,null,null,0]
[null,null,null,null,null,null,null,null,null,null,null,null,null,null,null,null,null,null,null,0]
[null,null,null,null,null,null,null,null,null,null,null,null,null,null,null,null,null,null,null,0]
[null,null,null,null,null,null,null,null,null,null,null,null,null,null,null,null,null,null,null,0]
[null,null,null,null,null,null,null,null,null,null,null,null,null,null,null,null,null,null,null,0]
[null,null,null,null,null,null,null,null,null,null,null,null,null,null,null,null,null,null,null,0]
[null,null,null,null,null,null,null,null,null,null,null,null,null,null,null,null,null,null,null,0]
[null,null,null,null,null,null,null,null,null,null,null,null,null,null,null,null,null,null,null,0]
[null,null,null,null,null,null,null,null,null,null,null,null,null,null,null,null,null,null,null,0]
[null,null,null,null,null,null,null,null,null,null,null,null,null,null,null,null,null,null,null,0]
[null,null,null,null,null,null,null,null,null,null,null,null,null,null,null,null,null,null,null,0]
[null,null,null,null,null,null,null,null,null,null,null,null,null,null,null,null,null,null,null,0]
[null,null,null,null,null,null,null,null,null,null,null,null,null,null,null,null,null,null,null,0]
[null,null,null,null,null,null,null,null,null,null,null,null,null,null,null,null,null,null,null,0]
[null,null,null,null,null,null,null,null,null,null,null,null,null,null,null,null,null,null,null,0]
[null,null,null,null,null,null,null,null,null,null,null,null,null,null,null,null,null,null,null,0]
[null,null,null,null,null,null,null,null,null,null,null,null,null,null,null,null,null,null,null,0]
[null,null,null,null,null,null,null,null,null,null,null,null,null,null,null,null,null,null,null,0]
[null,null,null,null,null,null,null,null,null,null,null,null,null,null,null,null,null,null,null,0]
[null,null,null,null,null,null,null,null,null,null,null,null,null,null,null,null,null,null,null,0]
[null,null,null,null,null,null,null,null,null,null,null,null,null,null,null,null,null,null,null,0]
[null,null,null,null,null,null,null,null,null,null,null,null,null,null,null,null,null,null,null,0]
[null,null,null,null,null,null,null,null,null,null,null,null,null,null,null,null,null,null,null,0]
[null,null,null,null,null,null,null,null,null,null,null,null,null,null,null,null,null,null,null,0]
[null,null,null,null,null,null,null,null,null,null,null,null,null,null,null,null,null,null,null,0]
[null,null,null,null,null,null,null,null,null,null,null,null,null,null,null,null,null,null,null,0]
[null,null,null,null,null,null,null,null,null,null,null,null,null,null,null,null,null,null,null,0]
[null,null,null,null,null,null,null,null,null,null,null,null,null,null,null,null,null,null,null,0]
[null,null,null,null,null,null,null,null,null,null,null,null,null,null,null,null,null,null,null,0]
[null,null,null,null,null,null,null,null,null,null,null,null,null,null,null,null,null,null,null,0]
[null,null,null,null,null,null,null,null,null,null,null,null,null,null,null,null,null,null,null,0]
[null,null,null,null,null,null,null,null,null,null,null,null,null,null,null,null,null,null,null,0]
[null,null,null,null,null,null,null,null,null,null,null,null,null,null,null,null,null,null,null,0]
[null,null,null,null,null,null,null,null,null,null,null,null,null,null,null,null,null,null,null,0]
[null,null,null,null,null,null,null,null,null,null,null,null,null,null,null,null,null,null,null,0]
[null,null,null,null,null,null,null,null,null,null,null,null,null,null,null,null,null,null,null,0]
[null,null,null,null,null,null,null,null,null,null,null,null,null,null,null,null,null,null,null,0]
[null,null,null,null,null,null,null,null,null,null,null,null,null,null,null,null,null,null,null,0]
[null,null,null,null,null,null,null,null,null,null,null,null,null,null,null,null,null,null,null,0]
[null,null,null,null,null,null,null,null,null,null,null,null,null,null,null,null,null,null,null,0]
[null,null,null,null,null,null,null,null,null,null,null,null,null,null,null,null,null,null,null,0]
[null,null,null,null,null,null,null,null,null,null,null,null,null,null,null,null,null,null,null,0]
[null,null,null,null,null,null,null,null,null,null,null,null,null,null,null,null,null,null,null,0]
[null,null,null,null,null,null,null,null,null,null,null,null,null,null,null,null,null,null,null,0]
[null,null,null,null,null,null,null,null,null,null,null,null,null,null,null,null,null,null,null,0]
[null,null,null,null,null,null,null,null,null,null,null,null,null,null,null,null,null,null,null,0]
[null,null,null,null,null,null,null,null,null,null,null,null,null,null,null,null,null,null,null,0]
[null,null,null,null,null,null,null,null,null,null,null,null,null,null,null,null,null,null,null,0]
[null,null,null,null,null,null,null,null,null,null,null,null,null,null,null,null,null,null,null,0]
[null,null,null,null,null,null,null,null,null,null,null,null,null,null,null,null,null,null,null,0]
[null,null,null,null,null,null,null,null,null,null,null,null,null,null,null,null,null,null,null,{"$f":"IF($D$2=D128,1,0)","v":0}]
[null,null,null,null,null,null,null,null,null,null,null,null,null,null,null,null,null,null,null,0]
[null,null,null,null,null,null,null,null,null,null,null,null,null,null,null,null,null,null,null,0]
[null,null,null,null,null,null,null,null,null,null,null,null,null,null,null,null,null,null,null,0]
[null,null,null,null,null,null,null,null,null,null,null,null,null,null,null,null,null,null,null,0]
[null,null,null,null,null,null,null,null,null,null,null,null,null,null,null,null,null,null,null,0]
[null,null,null,null,null,null,null,null,null,null,null,null,null,null,null,null,null,null,null,0]
[null,null,null,null,null,null,null,null,null,null,null,null,null,null,null,null,null,null,null,0]
[null,null,null,null,null,null,null,null,null,null,null,null,null,null,null,null,null,null,null,0]
[null,null,null,null,null,null,null,null,null,null,null,null,null,null,null,null,null,null,null,0]
[null,null,null,null,null,null,null,null,null,null,null,null,null,null,null,null,null,null,null,0]
[null,null,null,null,null,null,null,null,null,null,null,null,null,null,null,null,null,null,null,0]
[null,null,null,null,null,null,null,null,null,null,null,null,null,null,null,null,null,null,null,0]
[null,null,null,null,null,null,null,null,null,null,null,null,null,null,null,null,null,null,null,0]
[null,null,null,null,null,null,null,null,null,null,null,null,null,null,null,null,null,null,null,0]
[null,null,null,null,null,null,null,null,null,null,null,null,null,null,null,null,null,null,null,0]
[null,null,null,null,null,null,null,null,null,null,null,null,null,null,null,null,null,null,null,0]
[null,null,null,null,null,null,null,null,null,null,null,null,null,null,null,null,null,null,null,0]
[null,null,null,null,null,null,null,null,null,null,null,null,null,null,null,null,null,null,null,0]
[null,null,null,null,null,null,null,null,null,null,null,null,null,null,null,null,null,null,null,0]
[null,null,null,null,null,null,null,null,null,null,null,null,null,null,null,null,null,null,null,0]
[null,null,null,null,null,null,null,null,null,null,null,null,null,null,null,null,null,null,null,0]
[null,null,null,null,null,null,null,null,null,null,null,null,null,null,null,null,null,null,null,0]
[null,null,null,null,null,null,null,null,null,null,null,null,null,null,null,null,null,null,null,0]
[null,null,null,null,null,null,null,null,null,null,null,null,null,null,null,null,null,null,null,0]
[null,null,null,null,null,null,null,null,null,null,null,null,null,null,null,null,null,null,null,0]
[null,null,null,null,null,null,null,null,null,null,null,null,null,null,null,null,null,null,null,0]
[null,null,null,null,null,null,null,null,null,null,null,null,null,null,null,null,null,null,null,0]
[null,null,null,null,null,null,null,null,null,null,null,null,null,null,null,null,null,null,null,0]
[null,null,null,null,null,null,null,null,null,null,null,null,null,null,null,null,null,null,null,0]
[null,null,null,null,null,null,null,null,null,null,null,null,null,null,null,null,null,null,null,0]
[null,null,null,null,null,null,null,null,null,null,null,null,null,null,null,null,null,null,null,0]
[null,null,null,null,null,null,null,null,null,null,null,null,null,null,null,null,null,null,null,0]
[null,null,null,null,null,null,null,null,null,null,null,null,null,null,null,null,null,null,null,0]
[null,null,null,null,null,null,null,null,null,null,null,null,null,null,null,null,null,null,null,0]
[null,null,null,null,null,null,null,null,null,null,null,null,null,null,null,null,null,null,null,0]
[null,null,null,null,null,null,null,null,null,null,null,null,null,null,null,null,null,null,null,0]
[null,null,null,null,null,null,null,null,null,null,null,null,null,null,null,null,null,null,null,0]
[null,null,null,null,null,null,null,null,null,null,null,null,null,null,null,null,null,null,null,0]
[null,null,null,null,null,null,null,null,null,null,null,null,null,null,null,null,null,null,null,0]
[null,null,null,null,null,null,null,null,null,null,null,null,null,null,null,null,null,null,null,0]
[null,null,null,null,null,null,null,null,null,null,null,null,null,null,null,null,null,null,null,0]
[null,null,null,null,null,null,null,null,null,null,null,null,null,null,null,null,null,null,null,0]
[null,null,null,null,null,null,null,null,null,null,null,null,null,null,null,null,null,null,null,0]
[null,null,null,null,null,null,null,null,null,null,null,null,null,null,null,null,null,null,null,0]
[null,null,null,null,null,null,null,null,null,null,null,null,null,null,null,null,null,null,null,0]
[null,null,null,null,null,null,null,null,null,null,null,null,null,null,null,null,null,null,null,0]
[null,null,null,null,null,null,null,null,null,null,null,null,null,null,null,null,null,null,null,0]
[null,null,null,null,null,null,null,null,null,null,null,null,null,null,null,null,null,null,null,0]
[null,null,null,null,null,null,null,null,null,null,null,null,null,null,null,null,null,null,null,0]
[null,null,null,null,null,null,null,null,null,null,null,null,null,null,null,null,null,null,null,0]
[null,null,null,null,null,null,null,null,null,null,null,null,null,null,null,null,null,null,null,0]
[null,null,null,null,null,null,null,null,null,null,null,null,null,null,null,null,null,null,null,0]
[null,null,null,null,null,null,null,null,null,null,null,null,null,null,null,null,null,null,null,0]
[null,null,null,null,null,null,null,null,null,null,null,null,null,null,null,null,null,null,null,0]
[null,null,null,null,null,null,null,null,null,null,null,null,null,null,null,null,null,null,null,0]
[null,null,null,null,null,null,null,null,null,null,null,null,null,null,null,null,null,null,null,0]
[null,null,null,null,null,null,null,null,null,null,null,null,null,null,null,null,null,null,null,0]
[null,null,null,null,null,null,null,null,null,null,null,null,null,null,null,null,null,null,null,0]
[null,null,null,null,null,null,null,null,null,null,null,null,null,null,null,null,null,null,null,0]
[null,null,null,null,null,null,null,null,null,null,null,null,null,null,null,null,null,null,null,0]
[null,null,null,null,null,null,null,null,null,null,null,null,null,null,null,null,null,null,null,0]
[null,null,null,null,null,null,null,null,null,null,null,null,null,null,null,null,null,null,null,0]
[null,null,null,null,null,null,null,null,null,null,null,null,null,null,null,null,null,null,null,0]
[null,null,null,null,null,null,null,null,null,null,null,null,null,null,null,null,null,null,null,{"$f":"IF($D$2=D192,1,0)","v":0}]
[null,null,null,null,null,null,null,null,null,null,null,null,null,null,null,null,null,null,null,0]
[null,null,null,null,null,null,null,null,null,null,null,null,null,null,null,null,null,null,null,0]
[null,null,null,null,null,null,null,null,null,null,null,null,null,null,null,null,null,null,null,0]
[null,null,null,null,null,null,null,null,null,null,null,null,null,null,null,null,null,null,null,0]
[null,null,null,null,null,null,null,null,null,null,null,null,null,null,null,null,null,null,null,0]
[null,null,null,null,null,null,null,null,null,null,null,null,null,null,null,null,null,null,null,0]
[null,null,null,null,null,null,null,null,null,null,null,null,null,null,null,null,null,null,null,0]
[null,null,null,null,null,null,null,null,null,null,null,null,null,null,null,null,null,null,null,0]
[null,null,null,null,null,null,null,null,null,null,null,null,null,null,null,null,null,null,null,0]
[null,null,null,null,null,null,null,null,null,null,null,null,null,null,null,null,null,null,null,0]
[null,null,null,null,null,null,null,null,null,null,null,null,null,null,null,null,null,null,null,0]
[null,null,null,null,null,null,null,null,null,null,null,null,null,null,null,null,null,null,null,0]
[null,null,null,null,null,null,null,null,null,null,null,null,null,null,null,null,null,null,null,0]
[null,null,null,null,null,null,null,null,null,null,null,null,null,null,null,null,null,null,null,0]
[null,null,null,null,null,null,null,null,null,null,null,null,null,null,null,null,null,null,null,0]
[null,null,null,null,null,null,null,null,null,null,null,null,null,null,null,null,null,null,null,0]
[null,null,null,null,null,null,null,null,null,null,null,null,null,null,null,null,null,null,null,0]
[null,null,null,null,null,null,null,null,null,null,null,null,null,null,null,null,null,null,null,0]
[null,null,null,null,null,null,null,null,null,null,null,null,null,null,null,null,null,null,null,0]
[null,null,null,null,null,null,null,null,null,null,null,null,null,null,null,null,null,null,null,0]
[null,null,null,null,null,null,null,null,null,null,null,null,null,null,null,null,null,null,null,0]
[null,null,null,null,null,null,null,null,null,null,null,null,null,null,null,null,null,null,null,0]
[null,null,null,null,null,null,null,null,null,null,null,null,null,null,null,null,null,null,null,0]
[null,null,null,null,null,null,null,null,null,null,null,null,null,null,null,null,null,null,null,0]
[null,null,null,null,null,null,null,null,null,null,null,null,null,null,null,null,null,null,null,0]
[null,null,null,null,null,null,null,null,null,null,null,null,null,null,null,null,null,null,null,0]
[null,null,null,null,null,null,null,null,null,null,null,null,null,null,null,null,null,null,null,0]
[null,null,null,null,null,null,null,null,null,null,null,null,null,null,null,null,null,null,null,0]
[null,null,null,null,null,null,null,null,null,null,null,null,null,null,null,null,null,null,null,0]
[null,null,null,null,null,null,null,null,null,null,null,null,null,null,null,null,null,null,null,0]
[null,null,null,null,null,null,null,null,null,null,null,null,null,null,null,null,null,null,null,0]
[null,null,null,null,null,null,null,null,null,null,null,null,null,null,null,null,null,null,null,0]
[null,null,null,null,null,null,null,null,null,null,null,null,null,null,null,null,null,null,null,0]
[null,null,null,null,null,null,null,null,null,null,null,null,null,null,null,null,null,null,null,0]
[null,null,null,null,null,null,null,null,null,null,null,null,null,null,null,null,null,null,null,0]
[null,null,null,null,null,null,null,null,null,null,null,null,null,null,null,null,null,null,null,0]
[null,null,null,null,null,null,null,null,null,null,null,null,null,null,null,null,null,null,null,0]
[null,null,null,null,null,null,null,null,null,null,null,null,null,null,null,null,null,null,null,0]
[null,null,null,null,null,null,null,null,null,null,null,null,null,null,null,null,null,null,null,0]
[null,null,null,null,null,null,null,null,null,null,null,null,null,null,null,null,null,null,null,0]
[null,null,null,null,null,null,null,null,null,null,null,null,null,null,null,null,null,null,null,0]
[null,null,null,null,null,null,null,null,null,null,null,null,null,null,null,null,null,null,null,0]
[null,null,null,null,null,null,null,null,null,null,null,null,null,null,null,null,null,null,null,0]
[null,null,null,null,null,null,null,null,null,null,null,null,null,null,null,null,null,null,null,0]
[null,null,null,null,null,null,null,null,null,null,null,null,null,null,null,null,null,null,null,0]
[null,null,null,null,null,null,null,null,null,null,null,null,null,null,null,null,null,null,null,0]
[null,null,null,null,null,null,null,null,null,null,null,null,null,null,null,null,null,null,null,0]
[null,null,null,null,null,null,null,null,null,null,null,null,null,null,null,null,null,null,null,0]
[null,null,null,null,null,null,null,null,null,null,null,null,null,null,null,null,null,null,null,0]
[null,null,null,null,null,null,null,null,null,null,null,null,null,null,null,null,null,null,null,0]
[null,null,null,null,null,null,null,null,null,null,null,null,null,null,null,null,null,null,null,0]
[null,null,null,null,null,null,null,null,null,null,null,null,null,null,null,null,null,null,null,0]
[null,null,null,null,null,null,null,null,null,null,null,null,null,null,null,null,null,null,null,0]
[null,null,null,null,null,null,null,null,null,null,null,null,null,null,null,null,null,null,null,0]
[null,null,null,null,null,null,null,null,null,null,null,null,null,null,null,null,null,null,null,0]
[null,null,null,null,null,null,null,null,null,null,null,null,null,null,null,null,null,null,null,0]
[null,null,null,null,null,null,null,null,null,null,null,null,null,null,null,null,null,null,null,0]
[null,null,null,null,null,null,null,null,null,null,null,null,null,null,null,null,null,null,null,0]
[null,null,null,null,null,null,null,null,null,null,null,null,null,null,null,null,null,null,null,0]
[null,null,null,null,null,null,null,null,null,null,null,null,null,null,null,null,null,null,null,0]
[null,null,null,null,null,null,null,null,null,null,null,null,null,null,null,null,null,null,null,0]
[null,null,null,null,null,null,null,null,null,null,null,null,null,null,null,null,null,null,null,0]
[null,null,null,null,null,null,null,null,null,null,null,null,null,null,null,null,null,null,null,0]
[null,null,null,null,null,null,null,null,null,null,null,null,null,null,null,null,null,null,null,{"$f":"IF($D$2=D256,1,0)","v":0}]
[null,null,null,null,null,null,null,null,null,null,null,null,null,null,null,null,null,null,null,0]
[null,null,null,null,null,null,null,null,null,null,null,null,null,null,null,null,null,null,null,0]
[null,null,null,null,null,null,null,null,null,null,null,null,null,null,null,null,null,null,null,0]
[null,null,null,null,null,null,null,null,null,null,null,null,null,null,null,null,null,null,null,0]
[null,null,null,null,null,null,null,null,null,null,null,null,null,null,null,null,null,null,null,0]
[null,null,null,null,null,null,null,null,null,null,null,null,null,null,null,null,null,null,null,0]
[null,null,null,null,null,null,null,null,null,null,null,null,null,null,null,null,null,null,null,0]
[null,null,null,null,null,null,null,null,null,null,null,null,null,null,null,null,null,null,null,0]
[null,null,null,null,null,null,null,null,null,null,null,null,null,null,null,null,null,null,null,0]
[null,null,null,null,null,null,null,null,null,null,null,null,null,null,null,null,null,null,null,0]
[null,null,null,null,null,null,null,null,null,null,null,null,null,null,null,null,null,null,null,0]
[null,null,null,null,null,null,null,null,null,null,null,null,null,null,null,null,null,null,null,0]
[null,null,null,null,null,null,null,null,null,null,null,null,null,null,null,null,null,null,null,0]
[null,null,null,null,null,null,null,null,null,null,null,null,null,null,null,null,null,null,null,0]
[null,null,null,null,null,null,null,null,null,null,null,null,null,null,null,null,null,null,null,0]
[null,null,null,null,null,null,null,null,null,null,null,null,null,null,null,null,null,null,null,0]
[null,null,null,null,null,null,null,null,null,null,null,null,null,null,null,null,null,null,null,0]
[null,null,null,null,null,null,null,null,null,null,null,null,null,null,null,null,null,null,null,0]
[null,null,null,null,null,null,null,null,null,null,null,null,null,null,null,null,null,null,null,0]
[null,null,null,null,null,null,null,null,null,null,null,null,null,null,null,null,null,null,null,0]
[null,null,null,null,null,null,null,null,null,null,null,null,null,null,null,null,null,null,null,0]
[null,null,null,null,null,null,null,null,null,null,null,null,null,null,null,null,null,null,null,0]
[null,null,null,null,null,null,null,null,null,null,null,null,null,null,null,null,null,null,null,0]
[null,null,null,null,null,null,null,null,null,null,null,null,null,null,null,null,null,null,null,0]
[null,null,null,null,null,null,null,null,null,null,null,null,null,null,null,null,null,null,null,0]
[null,null,null,null,null,null,null,null,null,null,null,null,null,null,null,null,null,null,null,0]
[null,null,null,null,null,null,null,null,null,null,null,null,null,null,null,null,null,null,null,0]
[null,null,null,null,null,null,null,null,null,null,null,null,null,null,null,null,null,null,null,0]
[null,null,null,null,null,null,null,null,null,null,null,null,null,null,null,null,null,null,null,0]
[null,null,null,null,null,null,null,null,null,null,null,null,null,null,null,null,null,null,null,0]
[null,null,null,null,null,null,null,null,null,null,null,null,null,null,null,null,null,null,null,0]
[null,null,null,null,null,null,null,null,null,null,null,null,null,null,null,null,null,null,null,0]
[null,null,null,null,null,null,null,null,null,null,null,null,null,null,null,null,null,null,null,0]
[null,null,null,null,null,null,null,null,null,null,null,null,null,null,null,null,null,null,null,0]
[null,null,null,null,null,null,null,null,null,null,null,null,null,null,null,null,null,null,null,0]
[null,null,null,null,null,null,null,null,null,null,null,null,null,null,null,null,null,null,null,0]
[null,null,null,null,null,null,null,null,null,null,null,null,null,null,null,null,null,null,null,0]
[null,null,null,null,null,null,null,null,null,null,null,null,null,null,null,null,null,null,null,0]
[null,null,null,null,null,null,null,null,null,null,null,null,null,null,null,null,null,null,null,0]
[null,null,null,null,null,null,null,null,null,null,null,null,null,null,null,null,null,null,null,0]
[null,null,null,null,null,null,null,null,null,null,null,null,null,null,null,null,null,null,null,0]
[null,null,null,null,null,null,null,null,null,null,null,null,null,null,null,null,null,null,null,0]
[null,null,null,null,null,null,null,null,null,null,null,null,null,null,null,null,null,null,null,0]
[null,null,null,null,null,null,null,null,null,null,null,null,null,null,null,null,null,null,null,0]
[null,null,null,null,null,null,null,null,null,null,null,null,null,null,null,null,null,null,null,0]
[null,null,null,null,null,null,null,null,null,null,null,null,null,null,null,null,null,null,null,0]
[null,null,null,null,null,null,null,null,null,null,null,null,null,null,null,null,null,null,null,0]
[null,null,null,null,null,null,null,null,null,null,null,null,null,null,null,null,null,null,null,0]
[null,null,null,null,null,null,null,null,null,null,null,null,null,null,null,null,null,null,null,0]
[null,null,null,null,null,null,null,null,null,null,null,null,null,null,null,null,null,null,null,0]
[null,null,null,null,null,null,null,null,null,null,null,null,null,null,null,null,null,null,null,0]
[null,null,null,null,null,null,null,null,null,null,null,null,null,null,null,null,null,null,null,0]
[null,null,null,null,null,null,null,null,null,null,null,null,null,null,null,null,null,null,null,0]
[null,null,null,null,null,null,null,null,null,null,null,null,null,null,null,null,null,null,null,0]
[null,null,null,null,null,null,null,null,null,null,null,null,null,null,null,null,null,null,null,0]
[null,null,null,null,null,null,null,null,null,null,null,null,null,null,null,null,null,null,null,0]
[null,null,null,null,null,null,null,null,null,null,null,null,null,null,null,null,null,null,null,0]
[null,null,null,null,null,null,null,null,null,null,null,null,null,null,null,null,null,null,null,0]
[null,null,null,null,null,null,null,null,null,null,null,null,null,null,null,null,null,null,null,0]
[null,null,null,null,null,null,null,null,null,null,null,null,null,null,null,null,null,null,null,0]
[null,null,null,null,null,null,null,null,null,null,null,null,null,null,null,null,null,null,null,0]
[null,null,null,null,null,null,null,null,null,null,null,null,null,null,null,null,null,null,null,0]
[null,null,null,null,null,null,null,null,null,null,null,null,null,null,null,null,null,null,null,0]
[null,null,null,null,null,null,null,null,null,null,null,null,null,null,null,null,null,null,null,{"$f":"IF($D$2=D320,1,0)","v":0}]
[null,null,null,null,null,null,null,null,null,null,null,null,null,null,null,null,null,null,null,0]
[null,null,null,null,null,null,null,null,null,null,null,null,null,null,null,null,null,null,null,0]
[null,null,null,null,null,null,null,null,null,null,null,null,null,null,null,null,null,null,null,0]
[null,null,null,null,null,null,null,null,null,null,null,null,null,null,null,null,null,null,null,0]
[null,null,null,null,null,null,null,null,null,null,null,null,null,null,null,null,null,null,null,0]
[null,null,null,null,null,null,null,null,null,null,null,null,null,null,null,null,null,null,null,0]
[null,null,null,null,null,null,null,null,null,null,null,null,null,null,null,null,null,null,null,0]
[null,null,null,null,null,null,null,null,null,null,null,null,null,null,null,null,null,null,null,0]
[null,null,null,null,null,null,null,null,null,null,null,null,null,null,null,null,null,null,null,0]
[null,null,null,null,null,null,null,null,null,null,null,null,null,null,null,null,null,null,null,0]
[null,null,null,null,null,null,null,null,null,null,null,null,null,null,null,null,null,null,null,0]
[null,null,null,null,null,null,null,null,null,null,null,null,null,null,null,null,null,null,null,0]
[null,null,null,null,null,null,null,null,null,null,null,null,null,null,null,null,null,null,null,0]
[null,null,null,null,null,null,null,null,null,null,null,null,null,null,null,null,null,null,null,0]
[null,null,null,null,null,null,null,null,null,null,null,null,null,null,null,null,null,null,null,0]
[null,null,null,null,null,null,null,null,null,null,null,null,null,null,null,null,null,null,null,0]
[null,null,null,null,null,null,null,null,null,null,null,null,null,null,null,null,null,null,null,0]
[null,null,null,null,null,null,null,null,null,null,null,null,null,null,null,null,null,null,null,0]
[null,null,null,null,null,null,null,null,null,null,null,null,null,null,null,null,null,null,null,0]
[null,null,null,null,null,null,null,null,null,null,null,null,null,null,null,null,null,null,null,0]
[null,null,null,null,null,null,null,null,null,null,null,null,null,null,null,null,null,null,null,0]
[null,null,null,null,null,null,null,null,null,null,null,null,null,null,null,null,null,null,null,0]
[null,null,null,null,null,null,null,null,null,null,null,null,null,null,null,null,null,null,null,0]
[null,null,null,null,null,null,null,null,null,null,null,null,null,null,null,null,null,null,null,0]
[null,null,null,null,null,null,null,null,null,null,null,null,null,null,null,null,null,null,null,0]
[null,null,null,null,null,null,null,null,null,null,null,null,null,null,null,null,null,null,null,0]
[null,null,null,null,null,null,null,null,null,null,null,null,null,null,null,null,null,null,null,0]
[null,null,null,null,null,null,null,null,null,null,null,null,null,null,null,null,null,null,null,0]
[null,null,null,null,null,null,null,null,null,null,null,null,null,null,null,null,null,null,null,0]
[null,null,null,null,null,null,null,null,null,null,null,null,null,null,null,null,null,null,null,0]
[null,null,null,null,null,null,null,null,null,null,null,null,null,null,null,null,null,null,null,0]
[null,null,null,null,null,null,null,null,null,null,null,null,null,null,null,null,null,null,null,0]
[null,null,null,null,null,null,null,null,null,null,null,null,null,null,null,null,null,null,null,0]
[null,null,null,null,null,null,null,null,null,null,null,null,null,null,null,null,null,null,null,0]
[null,null,null,null,null,null,null,null,null,null,null,null,null,null,null,null,null,null,null,0]
[null,null,null,null,null,null,null,null,null,null,null,null,null,null,null,null,null,null,null,0]
[null,null,null,null,null,null,null,null,null,null,null,null,null,null,null,null,null,null,null,0]
[null,null,null,null,null,null,null,null,null,null,null,null,null,null,null,null,null,null,null,0]
[null,null,null,null,null,null,null,null,null,null,null,null,null,null,null,null,null,null,null,0]
[null,null,null,null,null,null,null,null,null,null,null,null,null,null,null,null,null,null,null,0]
[null,null,null,null,null,null,null,null,null,null,null,null,null,null,null,null,null,null,null,0]
[null,null,null,null,null,null,null,null,null,null,null,null,null,null,null,null,null,null,null,0]
[null,null,null,null,null,null,null,null,null,null,null,null,null,null,null,null,null,null,null,0]
[null,null,null,null,null,null,null,null,null,null,null,null,null,null,null,null,null,null,null,0]
[null,null,null,null,null,null,null,null,null,null,null,null,null,null,null,null,null,null,null,0]
[null,null,null,null,null,null,null,null,null,null,null,null,null,null,null,null,null,null,null,0]
[null,null,null,null,null,null,null,null,null,null,null,null,null,null,null,null,null,null,null,0]
[null,null,null,null,null,null,null,null,null,null,null,null,null,null,null,null,null,null,null,0]
[null,null,null,null,null,null,null,null,null,null,null,null,null,null,null,null,null,null,null,0]
[null,null,null,null,null,null,null,null,null,null,null,null,null,null,null,null,null,null,null,0]
[null,null,null,null,null,null,null,null,null,null,null,null,null,null,null,null,null,null,null,0]
[null,null,null,null,null,null,null,null,null,null,null,null,null,null,null,null,null,null,null,0]
[null,null,null,null,null,null,null,null,null,null,null,null,null,null,null,null,null,null,null,0]
[null,null,null,null,null,null,null,null,null,null,null,null,null,null,null,null,null,null,null,0]
[null,null,null,null,null,null,null,null,null,null,null,null,null,null,null,null,null,null,null,0]
[null,null,null,null,null,null,null,null,null,null,null,null,null,null,null,null,null,null,null,0]
[null,null,null,null,null,null,null,null,null,null,null,null,null,null,null,null,null,null,null,0]
[null,null,null,null,null,null,null,null,null,null,null,null,null,null,null,null,null,null,null,0]
[null,null,null,null,null,null,null,null,null,null,null,null,null,null,null,null,null,null,null,0]
[null,null,null,null,null,null,null,null,null,null,null,null,null,null,null,null,null,null,null,0]
[null,null,null,null,null,null,null,null,null,null,null,null,null,null,null,null,null,null,null,0]
[null,null,null,null,null,null,null,null,null,null,null,null,null,null,null,null,null,null,null,0]
[null,null,null,null,null,null,null,null,null,null,null,null,null,null,null,null,null,null,null,0]
[null,null,null,null,null,null,null,null,null,null,null,null,null,null,null,null,null,null,null,{"$f":"IF($D$2=D384,1,0)","v":0}]
[null,null,null,null,null,null,null,null,null,null,null,null,null,null,null,null,null,null,null,0]
[null,null,null,null,null,null,null,null,null,null,null,null,null,null,null,null,null,null,null,0]
[null,null,null,null,null,null,null,null,null,null,null,null,null,null,null,null,null,null,null,0]
[null,null,null,null,null,null,null,null,null,null,null,null,null,null,null,null,null,null,null,0]
[null,null,null,null,null,null,null,null,null,null,null,null,null,null,null,null,null,null,null,0]
[null,null,null,null,null,null,null,null,null,null,null,null,null,null,null,null,null,null,null,0]
[null,null,null,null,null,null,null,null,null,null,null,null,null,null,null,null,null,null,null,0]
[null,null,null,null,null,null,null,null,null,null,null,null,null,null,null,null,null,null,null,0]
[null,null,null,null,null,null,null,null,null,null,null,null,null,null,null,null,null,null,null,0]
[null,null,null,null,null,null,null,null,null,null,null,null,null,null,null,null,null,null,null,0]
[null,null,null,null,null,null,null,null,null,null,null,null,null,null,null,null,null,null,null,0]
[null,null,null,null,null,null,null,null,null,null,null,null,null,null,null,null,null,null,null,0]
[null,null,null,null,null,null,null,null,null,null,null,null,null,null,null,null,null,null,null,0]
[null,null,null,null,null,null,null,null,null,null,null,null,null,null,null,null,null,null,null,0]
[null,null,null,null,null,null,null,null,null,null,null,null,null,null,null,null,null,null,null,0]
[null,null,null,null,null,null,null,null,null,null,null,null,null,null,null,null,null,null,null,0]
[null,null,null,null,null,null,null,null,null,null,null,null,null,null,null,null,null,null,null,0]
[null,null,null,null,null,null,null,null,null,null,null,null,null,null,null,null,null,null,null,0]
[null,null,null,null,null,null,null,null,null,null,null,null,null,null,null,null,null,null,null,0]
[null,null,null,null,null,null,null,null,null,null,null,null,null,null,null,null,null,null,null,0]
[null,null,null,null,null,null,null,null,null,null,null,null,null,null,null,null,null,null,null,0]
[null,null,null,null,null,null,null,null,null,null,null,null,null,null,null,null,null,null,null,0]
[null,null,null,null,null,null,null,null,null,null,null,null,null,null,null,null,null,null,null,0]
[null,null,null,null,null,null,null,null,null,null,null,null,null,null,null,null,null,null,null,0]
[null,null,null,null,null,null,null,null,null,null,null,null,null,null,null,null,null,null,null,0]
[null,null,null,null,null,null,null,null,null,null,null,null,null,null,null,null,null,null,null,0]
[null,null,null,null,null,null,null,null,null,null,null,null,null,null,null,null,null,null,null,0]
[null,null,null,null,null,null,null,null,null,null,null,null,null,null,null,null,null,null,null,0]
[null,null,null,null,null,null,null,null,null,null,null,null,null,null,null,null,null,null,null,0]
[null,null,null,null,null,null,null,null,null,null,null,null,null,null,null,null,null,null,null,0]
[null,null,null,null,null,null,null,null,null,null,null,null,null,null,null,null,null,null,null,0]
[null,null,null,null,null,null,null,null,null,null,null,null,null,null,null,null,null,null,null,0]
[null,null,null,null,null,null,null,null,null,null,null,null,null,null,null,null,null,null,null,0]
[null,null,null,null,null,null,null,null,null,null,null,null,null,null,null,null,null,null,null,0]
[null,null,null,null,null,null,null,null,null,null,null,null,null,null,null,null,null,null,null,0]
[null,null,null,null,null,null,null,null,null,null,null,null,null,null,null,null,null,null,null,0]
[null,null,null,null,null,null,null,null,null,null,null,null,null,null,null,null,null,null,null,0]
[null,null,null,null,null,null,null,null,null,null,null,null,null,null,null,null,null,null,null,0]
[null,null,null,null,null,null,null,null,null,null,null,null,null,null,null,null,null,null,null,0]
[null,null,null,null,null,null,null,null,null,null,null,null,null,null,null,null,null,null,null,0]
[null,null,null,null,null,null,null,null,null,null,null,null,null,null,null,null,null,null,null,0]
[null,null,null,null,null,null,null,null,null,null,null,null,null,null,null,null,null,null,null,0]
[null,null,null,null,null,null,null,null,null,null,null,null,null,null,null,null,null,null,null,0]
[null,null,null,null,null,null,null,null,null,null,null,null,null,null,null,null,null,null,null,0]
[null,null,null,null,null,null,null,null,null,null,null,null,null,null,null,null,null,null,null,0]
[null,null,null,null,null,null,null,null,null,null,null,null,null,null,null,null,null,null,null,0]
[null,null,null,null,null,null,null,null,null,null,null,null,null,null,null,null,null,null,null,0]
[null,null,null,null,null,null,null,null,null,null,null,null,null,null,null,null,null,null,null,0]
[null,null,null,null,null,null,null,null,null,null,null,null,null,null,null,null,null,null,null,0]
[null,null,null,null,null,null,null,null,null,null,null,null,null,null,null,null,null,null,null,0]
[null,null,null,null,null,null,null,null,null,null,null,null,null,null,null,null,null,null,null,0]
[null,null,null,null,null,null,null,null,null,null,null,null,null,null,null,null,null,null,null,0]
[null,null,null,null,null,null,null,null,null,null,null,null,null,null,null,null,null,null,null,0]
[null,null,null,null,null,null,null,null,null,null,null,null,null,null,null,null,null,null,null,0]
[null,null,null,null,null,null,null,null,null,null,null,null,null,null,null,null,null,null,null,0]
[null,null,null,null,null,null,null,null,null,null,null,null,null,null,null,null,null,null,null,0]
[null,null,null,null,null,null,null,null,null,null,null,null,null,null,null,null,null,null,null,0]
[null,null,null,null,null,null,null,null,null,null,null,null,null,null,null,null,null,null,null,0]
[null,null,null,null,null,null,null,null,null,null,null,null,null,null,null,null,null,null,null,0]
[null,null,null,null,null,null,null,null,null,null,null,null,null,null,null,null,null,null,null,0]
[null,null,null,null,null,null,null,null,null,null,null,null,null,null,null,null,null,null,null,0]
[null,null,null,null,null,null,null,null,null,null,null,null,null,null,null,null,null,null,null,0]
[null,null,null,null,null,null,null,null,null,null,null,null,null,null,null,null,null,null,null,0]
[null,null,null,null,null,null,null,null,null,null,null,null,null,null,null,null,null,null,null,{"$f":"IF($D$2=D448,1,0)","v":0}]
[null,null,null,null,null,null,null,null,null,null,null,null,null,null,null,null,null,null,null,0]
[null,null,null,null,null,null,null,null,null,null,null,null,null,null,null,null,null,null,null,0]
[null,null,null,null,null,null,null,null,null,null,null,null,null,null,null,null,null,null,null,0]
[null,null,null,null,null,null,null,null,null,null,null,null,null,null,null,null,null,null,null,0]
[null,null,null,null,null,null,null,null,null,null,null,null,null,null,null,null,null,null,null,0]
[null,null,null,null,null,null,null,null,null,null,null,null,null,null,null,null,null,null,null,0]
[null,null,null,null,null,null,null,null,null,null,null,null,null,null,null,null,null,null,null,0]
[null,null,null,null,null,null,null,null,null,null,null,null,null,null,null,null,null,null,null,0]
[null,null,null,null,null,null,null,null,null,null,null,null,null,null,null,null,null,null,null,0]
[null,null,null,null,null,null,null,null,null,null,null,null,null,null,null,null,null,null,null,0]
[null,null,null,null,null,null,null,null,null,null,null,null,null,null,null,null,null,null,null,0]
[null,null,null,null,null,null,null,null,null,null,null,null,null,null,null,null,null,null,null,0]
[null,null,null,null,null,null,null,null,null,null,null,null,null,null,null,null,null,null,null,0]
[null,null,null,null,null,null,null,null,null,null,null,null,null,null,null,null,null,null,null,0]
[null,null,null,null,null,null,null,null,null,null,null,null,null,null,null,null,null,null,null,0]
[null,null,null,null,null,null,null,null,null,null,null,null,null,null,null,null,null,null,null,0]
[null,null,null,null,null,null,null,null,null,null,null,null,null,null,null,null,null,null,null,0]
[null,null,null,null,null,null,null,null,null,null,null,null,null,null,null,null,null,null,null,0]
[null,null,null,null,null,null,null,null,null,null,null,null,null,null,null,null,null,null,null,0]
[null,null,null,null,null,null,null,null,null,null,null,null,null,null,null,null,null,null,null,0]
[null,null,null,null,null,null,null,null,null,null,null,null,null,null,null,null,null,null,null,0]
[null,null,null,null,null,null,null,null,null,null,null,null,null,null,null,null,null,null,null,0]
[null,null,null,null,null,null,null,null,null,null,null,null,null,null,null,null,null,null,null,0]
[null,null,null,null,null,null,null,null,null,null,null,null,null,null,null,null,null,null,null,0]
[null,null,null,null,null,null,null,null,null,null,null,null,null,null,null,null,null,null,null,0]
[null,null,null,null,null,null,null,null,null,null,null,null,null,null,null,null,null,null,null,0]
[null,null,null,null,null,null,null,null,null,null,null,null,null,null,null,null,null,null,null,0]
[null,null,null,null,null,null,null,null,null,null,null,null,null,null,null,null,null,null,null,0]
[null,null,null,null,null,null,null,null,null,null,null,null,null,null,null,null,null,null,null,0]
[null,null,null,null,null,null,null,null,null,null,null,null,null,null,null,null,null,null,null,0]
[null,null,null,null,null,null,null,null,null,null,null,null,null,null,null,null,null,null,null,0]
[null,null,null,null,null,null,null,null,null,null,null,null,null,null,null,null,null,null,null,0]
[null,null,null,null,null,null,null,null,null,null,null,null,null,null,null,null,null,null,null,0]
[null,null,null,null,null,null,null,null,null,null,null,null,null,null,null,null,null,null,null,0]
[null,null,null,null,null,null,null,null,null,null,null,null,null,null,null,null,null,null,null,0]
[null,null,null,null,null,null,null,null,null,null,null,null,null,null,null,null,null,null,null,0]
[null,null,null,null,null,null,null,null,null,null,null,null,null,null,null,null,null,null,null,0]
[null,null,null,null,null,null,null,null,null,null,null,null,null,null,null,null,null,null,null,0]
[null,null,null,null,null,null,null,null,null,null,null,null,null,null,null,null,null,null,null,0]
[null,null,null,null,null,null,null,null,null,null,null,null,null,null,null,null,null,null,null,0]
[null,null,null,null,null,null,null,null,null,null,null,null,null,null,null,null,null,null,null,0]
[null,null,null,null,null,null,null,null,null,null,null,null,null,null,null,null,null,null,null,0]
[null,null,null,null,null,null,null,null,null,null,null,null,null,null,null,null,null,null,null,0]
[null,null,null,null,null,null,null,null,null,null,null,null,null,null,null,null,null,null,null,0]
[null,null,null,null,null,null,null,null,null,null,null,null,null,null,null,null,null,null,null,0]
[null,null,null,null,null,null,null,null,null,null,null,null,null,null,null,null,null,null,null,0]
[null,null,null,null,null,null,null,null,null,null,null,null,null,null,null,null,null,null,null,0]
[null,null,null,null,null,null,null,null,null,null,null,null,null,null,null,null,null,null,null,0]
[null,null,null,null,null,null,null,null,null,null,null,null,null,null,null,null,null,null,null,0]
[null,null,null,null,null,null,null,null,null,null,null,null,null,null,null,null,null,null,null,0]
[null,null,null,null,null,null,null,null,null,null,null,null,null,null,null,null,null,null,null,0]
[null,null,null,null,null,null,null,null,null,null,null,null,null,null,null,null,null,null,null,0]
[null,null,null,null,null,null,null,null,null,null,null,null,null,null,null,null,null,null,null,0]
[null,null,null,null,null,null,null,null,null,null,null,null,null,null,null,null,null,null,null,0]
[null,null,null,null,null,null,null,null,null,null,null,null,null,null,null,null,null,null,null,0]
[null,null,null,null,null,null,null,null,null,null,null,null,null,null,null,null,null,null,null,0]
[null,null,null,null,null,null,null,null,null,null,null,null,null,null,null,null,null,null,null,0]
[null,null,null,null,null,null,null,null,null,null,null,null,null,null,null,null,null,null,null,0]
[null,null,null,null,null,null,null,null,null,null,null,null,null,null,null,null,null,null,null,0]
[null,null,null,null,null,null,null,null,null,null,null,null,null,null,null,null,null,null,null,0]
[null,null,null,null,null,null,null,null,null,null,null,null,null,null,null,null,null,null,null,0]
[null,null,null,null,null,null,null,null,null,null,null,null,null,null,null,null,null,null,null,0]
[null,null,null,null,null,null,null,null,null,null,null,null,null,null,null,null,null,null,null,0]
[null,null,null,null,null,null,null,null,null,null,null,null,null,null,null,null,null,null,null,{"$f":"IF($D$2=D512,1,0)","v":0}]
[null,null,null,null,null,null,null,null,null,null,null,null,null,null,null,null,null,null,null,0]
[null,null,null,null,null,null,null,null,null,null,null,null,null,null,null,null,null,null,null,0]
[null,null,null,null,null,null,null,null,null,null,null,null,null,null,null,null,null,null,null,0]
[null,null,null,null,null,null,null,null,null,null,null,null,null,null,null,null,null,null,null,0]
[null,null,null,null,null,null,null,null,null,null,null,null,null,null,null,null,null,null,null,0]
[null,null,null,null,null,null,null,null,null,null,null,null,null,null,null,null,null,null,null,0]
[null,null,null,null,null,null,null,null,null,null,null,null,null,null,null,null,null,null,null,0]
[null,null,null,null,null,null,null,null,null,null,null,null,null,null,null,null,null,null,null,0]
[null,null,null,null,null,null,null,null,null,null,null,null,null,null,null,null,null,null,null,0]
[null,null,null,null,null,null,null,null,null,null,null,null,null,null,null,null,null,null,null,0]
[null,null,null,null,null,null,null,null,null,null,null,null,null,null,null,null,null,null,null,0]
[null,null,null,null,null,null,null,null,null,null,null,null,null,null,null,null,null,null,null,0]
[null,null,null,null,null,null,null,null,null,null,null,null,null,null,null,null,null,null,null,0]
[null,null,null,null,null,null,null,null,null,null,null,null,null,null,null,null,null,null,null,0]
[null,null,null,null,null,null,null,null,null,null,null,null,null,null,null,null,null,null,null,0]
[null,null,null,null,null,null,null,null,null,null,null,null,null,null,null,null,null,null,null,0]
[null,null,null,null,null,null,null,null,null,null,null,null,null,null,null,null,null,null,null,0]
[null,null,null,null,null,null,null,null,null,null,null,null,null,null,null,null,null,null,null,0]
[null,null,null,null,null,null,null,null,null,null,null,null,null,null,null,null,null,null,null,0]
[null,null,null,null,null,null,null,null,null,null,null,null,null,null,null,null,null,null,null,0]
[null,null,null,null,null,null,null,null,null,null,null,null,null,null,null,null,null,null,null,0]
[null,null,null,null,null,null,null,null,null,null,null,null,null,null,null,null,null,null,null,0]
[null,null,null,null,null,null,null,null,null,null,null,null,null,null,null,null,null,null,null,0]
[null,null,null,null,null,null,null,null,null,null,null,null,null,null,null,null,null,null,null,0]
[null,null,null,null,null,null,null,null,null,null,null,null,null,null,null,null,null,null,null,0]
[null,null,null,null,null,null,null,null,null,null,null,null,null,null,null,null,null,null,null,0]
[null,null,null,null,null,null,null,null,null,null,null,null,null,null,null,null,null,null,null,0]
[null,null,null,null,null,null,null,null,null,null,null,null,null,null,null,null,null,null,null,0]
[null,null,null,null,null,null,null,null,null,null,null,null,null,null,null,null,null,null,null,0]
[null,null,null,null,null,null,null,null,null,null,null,null,null,null,null,null,null,null,null,0]
[null,null,null,null,null,null,null,null,null,null,null,null,null,null,null,null,null,null,null,0]
[null,null,null,null,null,null,null,null,null,null,null,null,null,null,null,null,null,null,null,0]
[null,null,null,null,null,null,null,null,null,null,null,null,null,null,null,null,null,null,null,0]
[null,null,null,null,null,null,null,null,null,null,null,null,null,null,null,null,null,null,null,0]
[null,null,null,null,null,null,null,null,null,null,null,null,null,null,null,null,null,null,null,0]
[null,null,null,null,null,null,null,null,null,null,null,null,null,null,null,null,null,null,null,0]
[null,null,null,null,null,null,null,null,null,null,null,null,null,null,null,null,null,null,null,0]
[null,null,null,null,null,null,null,null,null,null,null,null,null,null,null,null,null,null,null,0]
[null,null,null,null,null,null,null,null,null,null,null,null,null,null,null,null,null,null,null,0]
[null,null,null,null,null,null,null,null,null,null,null,null,null,null,null,null,null,null,null,0]
[null,null,null,null,null,null,null,null,null,null,null,null,null,null,null,null,null,null,null,0]
[null,null,null,null,null,null,null,null,null,null,null,null,null,null,null,null,null,null,null,0]
[null,null,null,null,null,null,null,null,null,null,null,null,null,null,null,null,null,null,null,0]
[null,null,null,null,null,null,null,null,null,null,null,null,null,null,null,null,null,null,null,0]
[null,null,null,null,null,null,null,null,null,null,null,null,null,null,null,null,null,null,null,0]
[null,null,null,null,null,null,null,null,null,null,null,null,null,null,null,null,null,null,null,0]
[null,null,null,null,null,null,null,null,null,null,null,null,null,null,null,null,null,null,null,0]
[null,null,null,null,null,null,null,null,null,null,null,null,null,null,null,null,null,null,null,0]
[null,null,null,null,null,null,null,null,null,null,null,null,null,null,null,null,null,null,null,0]
[null,null,null,null,null,null,null,null,null,null,null,null,null,null,null,null,null,null,null,0]
[null,null,null,null,null,null,null,null,null,null,null,null,null,null,null,null,null,null,null,0]
[null,null,null,null,null,null,null,null,null,null,null,null,null,null,null,null,null,null,null,0]
[null,null,null,null,null,null,null,null,null,null,null,null,null,null,null,null,null,null,null,0]
[null,null,null,null,null,null,null,null,null,null,null,null,null,null,null,null,null,null,null,0]
[null,null,null,null,null,null,null,null,null,null,null,null,null,null,null,null,null,null,null,0]
[null,null,null,null,null,null,null,null,null,null,null,null,null,null,null,null,null,null,null,0]
[null,null,null,null,null,null,null,null,null,null,null,null,null,null,null,null,null,null,null,0]
[null,null,null,null,null,null,null,null,null,null,null,null,null,null,null,null,null,null,null,0]
[null,null,null,null,null,null,null,null,null,null,null,null,null,null,null,null,null,null,null,0]
[null,null,null,null,null,null,null,null,null,null,null,null,null,null,null,null,null,null,null,0]
[null,null,null,null,null,null,null,null,null,null,null,null,null,null,null,null,null,null,null,0]
[null,null,null,null,null,null,null,null,null,null,null,null,null,null,null,null,null,null,null,0]
[null,null,null,null,null,null,null,null,null,null,null,null,null,null,null,null,null,null,null,0]
[null,null,null,null,null,null,null,null,null,null,null,null,null,null,null,null,null,null,null,{"$f":"IF($D$2=D576,1,0)","v":0}]
[null,null,null,null,null,null,null,null,null,null,null,null,null,null,null,null,null,null,null,0]
[null,null,null,null,null,null,null,null,null,null,null,null,null,null,null,null,null,null,null,0]
[null,null,null,null,null,null,null,null,null,null,null,null,null,null,null,null,null,null,null,0]
[null,null,null,null,null,null,null,null,null,null,null,null,null,null,null,null,null,null,null,0]
[null,null,null,null,null,null,null,null,null,null,null,null,null,null,null,null,null,null,null,0]
[null,null,null,null,null,null,null,null,null,null,null,null,null,null,null,null,null,null,null,0]
[null,null,null,null,null,null,null,null,null,null,null,null,null,null,null,null,null,null,null,0]
[null,null,null,null,null,null,null,null,null,null,null,null,null,null,null,null,null,null,null,0]
[null,null,null,null,null,null,null,null,null,null,null,null,null,null,null,null,null,null,null,0]
[null,null,null,null,null,null,null,null,null,null,null,null,null,null,null,null,null,null,null,0]
[null,null,null,null,null,null,null,null,null,null,null,null,null,null,null,null,null,null,null,0]
[null,null,null,null,null,null,null,null,null,null,null,null,null,null,null,null,null,null,null,0]
[null,null,null,null,null,null,null,null,null,null,null,null,null,null,null,null,null,null,null,0]
[null,null,null,null,null,null,null,null,null,null,null,null,null,null,null,null,null,null,null,0]
[null,null,null,null,null,null,null,null,null,null,null,null,null,null,null,null,null,null,null,0]
[null,null,null,null,null,null,null,null,null,null,null,null,null,null,null,null,null,null,null,0]
[null,null,null,null,null,null,null,null,null,null,null,null,null,null,null,null,null,null,null,0]
[null,null,null,null,null,null,null,null,null,null,null,null,null,null,null,null,null,null,null,0]
[null,null,null,null,null,null,null,null,null,null,null,null,null,null,null,null,null,null,null,0]
[null,null,null,null,null,null,null,null,null,null,null,null,null,null,null,null,null,null,null,0]
[null,null,null,null,null,null,null,null,null,null,null,null,null,null,null,null,null,null,null,0]
[null,null,null,null,null,null,null,null,null,null,null,null,null,null,null,null,null,null,null,0]
[null,null,null,null,null,null,null,null,null,null,null,null,null,null,null,null,null,null,null,0]
[null,null,null,null,null,null,null,null,null,null,null,null,null,null,null,null,null,null,null,0]
[null,null,null,null,null,null,null,null,null,null,null,null,null,null,null,null,null,null,null,0]
[null,null,null,null,null,null,null,null,null,null,null,null,null,null,null,null,null,null,null,0]
[null,null,null,null,null,null,null,null,null,null,null,null,null,null,null,null,null,null,null,0]
[null,null,null,null,null,null,null,null,null,null,null,null,null,null,null,null,null,null,null,0]
[null,null,null,null,null,null,null,null,null,null,null,null,null,null,null,null,null,null,null,0]
[null,null,null,null,null,null,null,null,null,null,null,null,null,null,null,null,null,null,null,0]
[null,null,null,null,null,null,null,null,null,null,null,null,null,null,null,null,null,null,null,0]
[null,null,null,null,null,null,null,null,null,null,null,null,null,null,null,null,null,null,null,0]
[null,null,null,null,null,null,null,null,null,null,null,null,null,null,null,null,null,null,null,0]
[null,null,null,null,null,null,null,null,null,null,null,null,null,null,null,null,null,null,null,0]
[null,null,null,null,null,null,null,null,null,null,null,null,null,null,null,null,null,null,null,0]
[null,null,null,null,null,null,null,null,null,null,null,null,null,null,null,null,null,null,null,0]
[null,null,null,null,null,null,null,null,null,null,null,null,null,null,null,null,null,null,null,0]
[null,null,null,null,null,null,null,null,null,null,null,null,null,null,null,null,null,null,null,0]
[null,null,null,null,null,null,null,null,null,null,null,null,null,null,null,null,null,null,null,0]
[null,null,null,null,null,null,null,null,null,null,null,null,null,null,null,null,null,null,null,0]
[null,null,null,null,null,null,null,null,null,null,null,null,null,null,null,null,null,null,null,0]
[null,null,null,null,null,null,null,null,null,null,null,null,null,null,null,null,null,null,null,0]
[null,null,null,null,null,null,null,null,null,null,null,null,null,null,null,null,null,null,null,0]
[null,null,null,null,null,null,null,null,null,null,null,null,null,null,null,null,null,null,null,0]
[null,null,null,null,null,null,null,null,null,null,null,null,null,null,null,null,null,null,null,0]
[null,null,null,null,null,null,null,null,null,null,null,null,null,null,null,null,null,null,null,0]
[null,null,null,null,null,null,null,null,null,null,null,null,null,null,null,null,null,null,null,0]
[null,null,null,null,null,null,null,null,null,null,null,null,null,null,null,null,null,null,null,0]
[null,null,null,null,null,null,null,null,null,null,null,null,null,null,null,null,null,null,null,0]
[null,null,null,null,null,null,null,null,null,null,null,null,null,null,null,null,null,null,null,0]
[null,null,null,null,null,null,null,null,null,null,null,null,null,null,null,null,null,null,null,0]
[null,null,null,null,null,null,null,null,null,null,null,null,null,null,null,null,null,null,null,0]
[null,null,null,null,null,null,null,null,null,null,null,null,null,null,null,null,null,null,null,0]
[null,null,null,null,null,null,null,null,null,null,null,null,null,null,null,null,null,null,null,0]
[null,null,null,null,null,null,null,null,null,null,null,null,null,null,null,null,null,null,null,0]
[null,null,null,null,null,null,null,null,null,null,null,null,null,null,null,null,null,null,null,0]
[null,null,null,null,null,null,null,null,null,null,null,null,null,null,null,null,null,null,null,0]
[null,null,null,null,null,null,null,null,null,null,null,null,null,null,null,null,null,null,null,0]
[null,null,null,null,null,null,null,null,null,null,null,null,null,null,null,null,null,null,null,0]
[null,null,null,null,null,null,null,null,null,null,null,null,null,null,null,null,null,null,null,0]
[null,null,null,null,null,null,null,null,null,null,null,null,null,null,null,null,null,null,null,0]
[null,null,null,null,null,null,null,null,null,null,null,null,null,null,null,null,null,null,null,0]
[null,null,null,null,null,null,null,null,null,null,null,null,null,null,null,null,null,null,null,0]
[null,null,null,null,null,null,null,null,null,null,null,null,null,null,null,null,null,null,null,{"$f":"IF($D$2=D640,1,0)","v":0}]
[null,null,null,null,null,null,null,null,null,null,null,null,null,null,null,null,null,null,null,0]
[null,null,null,null,null,null,null,null,null,null,null,null,null,null,null,null,null,null,null,0]
[null,null,null,null,null,null,null,null,null,null,null,null,null,null,null,null,null,null,null,0]
[null,null,null,null,null,null,null,null,null,null,null,null,null,null,null,null,null,null,null,0]
[null,null,null,null,null,null,null,null,null,null,null,null,null,null,null,null,null,null,null,0]
[null,null,null,null,null,null,null,null,null,null,null,null,null,null,null,null,null,null,null,0]
[null,null,null,null,null,null,null,null,null,null,null,null,null,null,null,null,null,null,null,0]
[null,null,null,null,null,null,null,null,null,null,null,null,null,null,null,null,null,null,null,0]
[null,null,null,null,null,null,null,null,null,null,null,null,null,null,null,null,null,null,null,0]
[null,null,null,null,null,null,null,null,null,null,null,null,null,null,null,null,null,null,null,0]
[null,null,null,null,null,null,null,null,null,null,null,null,null,null,null,null,null,null,null,0]
[null,null,null,null,null,null,null,null,null,null,null,null,null,null,null,null,null,null,null,0]
[null,null,null,null,null,null,null,null,null,null,null,null,null,null,null,null,null,null,null,0]
[null,null,null,null,null,null,null,null,null,null,null,null,null,null,null,null,null,null,null,0]
[null,null,null,null,null,null,null,null,null,null,null,null,null,null,null,null,null,null,null,0]
[null,null,null,null,null,null,null,null,null,null,null,null,null,null,null,null,null,null,null,0]
[null,null,null,null,null,null,null,null,null,null,null,null,null,null,null,null,null,null,null,0]
[null,null,null,null,null,null,null,null,null,null,null,null,null,null,null,null,null,null,null,0]
[null,null,null,null,null,null,null,null,null,null,null,null,null,null,null,null,null,null,null,0]
[null,null,null,null,null,null,null,null,null,null,null,null,null,null,null,null,null,null,null,0]
[null,null,null,null,null,null,null,null,null,null,null,null,null,null,null,null,null,null,null,0]
[null,null,null,null,null,null,null,null,null,null,null,null,null,null,null,null,null,null,null,0]
[null,null,null,null,null,null,null,null,null,null,null,null,null,null,null,null,null,null,null,0]
[null,null,null,null,null,null,null,null,null,null,null,null,null,null,null,null,null,null,null,0]
[null,null,null,null,null,null,null,null,null,null,null,null,null,null,null,null,null,null,null,0]
[null,null,null,null,null,null,null,null,null,null,null,null,null,null,null,null,null,null,null,0]
[null,null,null,null,null,null,null,null,null,null,null,null,null,null,null,null,null,null,null,0]
[null,null,null,null,null,null,null,null,null,null,null,null,null,null,null,null,null,null,null,0]
[null,null,null,null,null,null,null,null,null,null,null,null,null,null,null,null,null,null,null,0]
[null,null,null,null,null,null,null,null,null,null,null,null,null,null,null,null,null,null,null,0]
[null,null,null,null,null,null,null,null,null,null,null,null,null,null,null,null,null,null,null,0]
[null,null,null,null,null,null,null,null,null,null,null,null,null,null,null,null,null,null,null,0]
[null,null,null,null,null,null,null,null,null,null,null,null,null,null,null,null,null,null,null,0]
[null,null,null,null,null,null,null,null,null,null,null,null,null,null,null,null,null,null,null,0]
[null,null,null,null,null,null,null,null,null,null,null,null,null,null,null,null,null,null,null,0]
[null,null,null,null,null,null,null,null,null,null,null,null,null,null,null,null,null,null,null,0]
[null,null,null,null,null,null,null,null,null,null,null,null,null,null,null,null,null,null,null,0]
[null,null,null,null,null,null,null,null,null,null,null,null,null,null,null,null,null,null,null,0]
[null,null,null,null,null,null,null,null,null,null,null,null,null,null,null,null,null,null,null,0]
[null,null,null,null,null,null,null,null,null,null,null,null,null,null,null,null,null,null,null,0]
[null,null,null,null,null,null,null,null,null,null,null,null,null,null,null,null,null,null,null,0]
[null,null,null,null,null,null,null,null,null,null,null,null,null,null,null,null,null,null,null,0]
[null,null,null,null,null,null,null,null,null,null,null,null,null,null,null,null,null,null,null,0]
[null,null,null,null,null,null,null,null,null,null,null,null,null,null,null,null,null,null,null,0]
[null,null,null,null,null,null,null,null,null,null,null,null,null,null,null,null,null,null,null,0]
[null,null,null,null,null,null,null,null,null,null,null,null,null,null,null,null,null,null,null,0]
[null,null,null,null,null,null,null,null,null,null,null,null,null,null,null,null,null,null,null,0]
[null,null,null,null,null,null,null,null,null,null,null,null,null,null,null,null,null,null,null,0]
[null,null,null,null,null,null,null,null,null,null,null,null,null,null,null,null,null,null,null,0]
[null,null,null,null,null,null,null,null,null,null,null,null,null,null,null,null,null,null,null,0]
[null,null,null,null,null,null,null,null,null,null,null,null,null,null,null,null,null,null,null,0]
[null,null,null,null,null,null,null,null,null,null,null,null,null,null,null,null,null,null,null,0]
[null,null,null,null,null,null,null,null,null,null,null,null,null,null,null,null,null,null,null,0]
[null,null,null,null,null,null,null,null,null,null,null,null,null,null,null,null,null,null,null,0]
[null,null,null,null,null,null,null,null,null,null,null,null,null,null,null,null,null,null,null,0]
[null,null,null,null,null,null,null,null,null,null,null,null,null,null,null,null,null,null,null,0]
[null,null,null,null,null,null,null,null,null,null,null,null,null,null,null,null,null,null,null,0]
[null,null,null,null,null,null,null,null,null,null,null,null,null,null,null,null,null,null,null,0]
[null,null,null,null,null,null,null,null,null,null,null,null,null,null,null,null,null,null,null,0]
[null,null,null,null,null,null,null,null,null,null,null,null,null,null,null,null,null,null,null,0]
[null,null,null,null,null,null,null,null,null,null,null,null,null,null,null,null,null,null,null,0]
[null,null,null,null,null,null,null,null,null,null,null,null,null,null,null,null,null,null,null,0]
[null,null,null,null,null,null,null,null,null,null,null,null,null,null,null,null,null,null,null,0]
[null,null,null,null,null,null,null,null,null,null,null,null,null,null,null,null,null,null,null,{"$f":"IF($D$2=D704,1,0)","v":0}]
[null,null,null,null,null,null,null,null,null,null,null,null,null,null,null,null,null,null,null,0]
[null,null,null,null,null,null,null,null,null,null,null,null,null,null,null,null,null,null,null,0]
[null,null,null,null,null,null,null,null,null,null,null,null,null,null,null,null,null,null,null,0]
[null,null,null,null,null,null,null,null,null,null,null,null,null,null,null,null,null,null,null,0]
[null,null,null,null,null,null,null,null,null,null,null,null,null,null,null,null,null,null,null,0]
[null,null,null,null,null,null,null,null,null,null,null,null,null,null,null,null,null,null,null,0]
[null,null,null,null,null,null,null,null,null,null,null,null,null,null,null,null,null,null,null,0]
[null,null,null,null,null,null,null,null,null,null,null,null,null,null,null,null,null,null,null,0]
[null,null,null,null,null,null,null,null,null,null,null,null,null,null,null,null,null,null,null,0]
[null,null,null,null,null,null,null,null,null,null,null,null,null,null,null,null,null,null,null,0]
[null,null,null,null,null,null,null,null,null,null,null,null,null,null,null,null,null,null,null,0]
[null,null,null,null,null,null,null,null,null,null,null,null,null,null,null,null,null,null,null,0]
[null,null,null,null,null,null,null,null,null,null,null,null,null,null,null,null,null,null,null,0]
[null,null,null,null,null,null,null,null,null,null,null,null,null,null,null,null,null,null,null,0]
[null,null,null,null,null,null,null,null,null,null,null,null,null,null,null,null,null,null,null,0]
[null,null,null,null,null,null,null,null,null,null,null,null,null,null,null,null,null,null,null,0]
[null,null,null,null,null,null,null,null,null,null,null,null,null,null,null,null,null,null,null,0]
[null,null,null,null,null,null,null,null,null,null,null,null,null,null,null,null,null,null,null,0]
[null,null,null,null,null,null,null,null,null,null,null,null,null,null,null,null,null,null,null,0]
[null,null,null,null,null,null,null,null,null,null,null,null,null,null,null,null,null,null,null,0]
[null,null,null,null,null,null,null,null,null,null,null,null,null,null,null,null,null,null,null,0]
[null,null,null,null,null,null,null,null,null,null,null,null,null,null,null,null,null,null,null,0]
[null,null,null,null,null,null,null,null,null,null,null,null,null,null,null,null,null,null,null,0]
[null,null,null,null,null,null,null,null,null,null,null,null,null,null,null,null,null,null,null,0]
[null,null,null,null,null,null,null,null,null,null,null,null,null,null,null,null,null,null,null,0]
[null,null,null,null,null,null,null,null,null,null,null,null,null,null,null,null,null,null,null,0]
[null,null,null,null,null,null,null,null,null,null,null,null,null,null,null,null,null,null,null,0]
[null,null,null,null,null,null,null,null,null,null,null,null,null,null,null,null,null,null,null,0]
[null,null,null,null,null,null,null,null,null,null,null,null,null,null,null,null,null,null,null,0]
[null,null,null,null,null,null,null,null,null,null,null,null,null,null,null,null,null,null,null,0]
[null,null,null,null,null,null,null,null,null,null,null,null,null,null,null,null,null,null,null,0]
[null,null,null,null,null,null,null,null,null,null,null,null,null,null,null,null,null,null,null,0]
[null,null,null,null,null,null,null,null,null,null,null,null,null,null,null,null,null,null,null,0]
[null,null,null,null,null,null,null,null,null,null,null,null,null,null,null,null,null,null,null,0]
[null,null,null,null,null,null,null,null,null,null,null,null,null,null,null,null,null,null,null,0]
[null,null,null,null,null,null,null,null,null,null,null,null,null,null,null,null,null,null,null,0]
[null,null,null,null,null,null,null,null,null,null,null,null,null,null,null,null,null,null,null,0]
[null,null,null,null,null,null,null,null,null,null,null,null,null,null,null,null,null,null,null,0]
[null,null,null,null,null,null,null,null,null,null,null,null,null,null,null,null,null,null,null,0]
[null,null,null,null,null,null,null,null,null,null,null,null,null,null,null,null,null,null,null,0]
[null,null,null,null,null,null,null,null,null,null,null,null,null,null,null,null,null,null,null,0]
[null,null,null,null,null,null,null,null,null,null,null,null,null,null,null,null,null,null,null,0]
[null,null,null,null,null,null,null,null,null,null,null,null,null,null,null,null,null,null,null,0]
[null,null,null,null,null,null,null,null,null,null,null,null,null,null,null,null,null,null,null,0]
[null,null,null,null,null,null,null,null,null,null,null,null,null,null,null,null,null,null,null,0]
[null,null,null,null,null,null,null,null,null,null,null,null,null,null,null,null,null,null,null,0]
[null,null,null,null,null,null,null,null,null,null,null,null,null,null,null,null,null,null,null,0]
[null,null,null,null,null,null,null,null,null,null,null,null,null,null,null,null,null,null,null,0]
[null,null,null,null,null,null,null,null,null,null,null,null,null,null,null,null,null,null,null,0]
[null,null,null,null,null,null,null,null,null,null,null,null,null,null,null,null,null,null,null,0]
[null,null,null,null,null,null,null,null,null,null,null,null,null,null,null,null,null,null,null,0]
[null,null,null,null,null,null,null,null,null,null,null,null,null,null,null,null,null,null,null,0]
[null,null,null,null,null,null,null,null,null,null,null,null,null,null,null,null,null,null,null,0]
[null,null,null,null,null,null,null,null,null,null,null,null,null,null,null,null,null,null,null,0]
[null,null,null,null,null,null,null,null,null,null,null,null,null,null,null,null,null,null,null,0]
[null,null,null,null,null,null,null,null,null,null,null,null,null,null,null,null,null,null,null,0]
[null,null,null,null,null,null,null,null,null,null,null,null,null,null,null,null,null,null,null,0]
[null,null,null,null,null,null,null,null,null,null,null,null,null,null,null,null,null,null,null,0]
[null,null,null,null,null,null,null,null,null,null,null,null,null,null,null,null,null,null,null,0]
[null,null,null,null,null,null,null,null,null,null,null,null,null,null,null,null,null,null,null,0]
[null,null,null,null,null,null,null,null,null,null,null,null,null,null,null,null,null,null,null,0]
[null,null,null,null,null,null,null,null,null,null,null,null,null,null,null,null,null,null,null,0]
[null,null,null,null,null,null,null,null,null,null,null,null,null,null,null,null,null,null,null,0]
[null,null,null,null,null,null,null,null,null,null,null,null,null,null,null,null,null,null,null,{"$f":"IF($D$2=D768,1,0)","v":0}]
[null,null,null,null,null,null,null,null,null,null,null,null,null,null,null,null,null,null,null,0]
[null,null,null,null,null,null,null,null,null,null,null,null,null,null,null,null,null,null,null,0]
[null,null,null,null,null,null,null,null,null,null,null,null,null,null,null,null,null,null,null,0]
[null,null,null,null,null,null,null,null,null,null,null,null,null,null,null,null,null,null,null,0]
[null,null,null,null,null,null,null,null,null,null,null,null,null,null,null,null,null,null,null,0]
[null,null,null,null,null,null,null,null,null,null,null,null,null,null,null,null,null,null,null,0]
[null,null,null,null,null,null,null,null,null,null,null,null,null,null,null,null,null,null,null,0]
[null,null,null,null,null,null,null,null,null,null,null,null,null,null,null,null,null,null,null,0]
[null,null,null,null,null,null,null,null,null,null,null,null,null,null,null,null,null,null,null,0]
[null,null,null,null,null,null,null,null,null,null,null,null,null,null,null,null,null,null,null,0]
[null,null,null,null,null,null,null,null,null,null,null,null,null,null,null,null,null,null,null,0]
[null,null,null,null,null,null,null,null,null,null,null,null,null,null,null,null,null,null,null,0]
[null,null,null,null,null,null,null,null,null,null,null,null,null,null,null,null,null,null,null,0]
[null,null,null,null,null,null,null,null,null,null,null,null,null,null,null,null,null,null,null,0]
[null,null,null,null,null,null,null,null,null,null,null,null,null,null,null,null,null,null,null,0]
[null,null,null,null,null,null,null,null,null,null,null,null,null,null,null,null,null,null,null,0]
[null,null,null,null,null,null,null,null,null,null,null,null,null,null,null,null,null,null,null,0]
[null,null,null,null,null,null,null,null,null,null,null,null,null,null,null,null,null,null,null,0]
[null,null,null,null,null,null,null,null,null,null,null,null,null,null,null,null,null,null,null,0]
[null,null,null,null,null,null,null,null,null,null,null,null,null,null,null,null,null,null,null,0]
[null,null,null,null,null,null,null,null,null,null,null,null,null,null,null,null,null,null,null,0]
[null,null,null,null,null,null,null,null,null,null,null,null,null,null,null,null,null,null,null,0]
[null,null,null,null,null,null,null,null,null,null,null,null,null,null,null,null,null,null,null,0]
[null,null,null,null,null,null,null,null,null,null,null,null,null,null,null,null,null,null,null,0]
[null,null,null,null,null,null,null,null,null,null,null,null,null,null,null,null,null,null,null,0]
[null,null,null,null,null,null,null,null,null,null,null,null,null,null,null,null,null,null,null,0]
[null,null,null,null,null,null,null,null,null,null,null,null,null,null,null,null,null,null,null,0]
[null,null,null,null,null,null,null,null,null,null,null,null,null,null,null,null,null,null,null,0]
[null,null,null,null,null,null,null,null,null,null,null,null,null,null,null,null,null,null,null,0]
[null,null,null,null,null,null,null,null,null,null,null,null,null,null,null,null,null,null,null,0]
[null,null,null,null,null,null,null,null,null,null,null,null,null,null,null,null,null,null,null,0]
[null,null,null,null,null,null,null,null,null,null,null,null,null,null,null,null,null,null,null,0]
[null,null,null,null,null,null,null,null,null,null,null,null,null,null,null,null,null,null,null,0]
[null,null,null,null,null,null,null,null,null,null,null,null,null,null,null,null,null,null,null,0]
[null,null,null,null,null,null,null,null,null,null,null,null,null,null,null,null,null,null,null,0]
[null,null,null,null,null,null,null,null,null,null,null,null,null,null,null,null,null,null,null,0]
[null,null,null,null,null,null,null,null,null,null,null,null,null,null,null,null,null,null,null,0]
[null,null,null,null,null,null,null,null,null,null,null,null,null,null,null,null,null,null,null,0]
[null,null,null,null,null,null,null,null,null,null,null,null,null,null,null,null,null,null,null,0]
[null,null,null,null,null,null,null,null,null,null,null,null,null,null,null,null,null,null,null,0]
[null,null,null,null,null,null,null,null,null,null,null,null,null,null,null,null,null,null,null,0]
[null,null,null,null,null,null,null,null,null,null,null,null,null,null,null,null,null,null,null,0]
[null,null,null,null,null,null,null,null,null,null,null,null,null,null,null,null,null,null,null,0]
[null,null,null,null,null,null,null,null,null,null,null,null,null,null,null,null,null,null,null,0]
[null,null,null,null,null,null,null,null,null,null,null,null,null,null,null,null,null,null,null,0]
[null,null,null,null,null,null,null,null,null,null,null,null,null,null,null,null,null,null,null,0]
[null,null,null,null,null,null,null,null,null,null,null,null,null,null,null,null,null,null,null,0]
[null,null,null,null,null,null,null,null,null,null,null,null,null,null,null,null,null,null,null,0]
[null,null,null,null,null,null,null,null,null,null,null,null,null,null,null,null,null,null,null,0]
[null,null,null,null,null,null,null,null,null,null,null,null,null,null,null,null,null,null,null,0]
[null,null,null,null,null,null,null,null,null,null,null,null,null,null,null,null,null,null,null,0]
[null,null,null,null,null,null,null,null,null,null,null,null,null,null,null,null,null,null,null,0]
[null,null,null,null,null,null,null,null,null,null,null,null,null,null,null,null,null,null,null,0]
[null,null,null,null,null,null,null,null,null,null,null,null,null,null,null,null,null,null,null,0]
[null,null,null,null,null,null,null,null,null,null,null,null,null,null,null,null,null,null,null,0]
[null,null,null,null,null,null,null,null,null,null,null,null,null,null,null,null,null,null,null,0]
[null,null,null,null,null,null,null,null,null,null,null,null,null,null,null,null,null,null,null,0]
[null,null,null,null,null,null,null,null,null,null,null,null,null,null,null,null,null,null,null,0]
[null,null,null,null,null,null,null,null,null,null,null,null,null,null,null,null,null,null,null,0]
[null,null,null,null,null,null,null,null,null,null,null,null,null,null,null,null,null,null,null,0]
[null,null,null,null,null,null,null,null,null,null,null,null,null,null,null,null,null,null,null,0]
[null,null,null,null,null,null,null,null,null,null,null,null,null,null,null,null,null,null,null,0]
[null,null,null,null,null,null,null,null,null,null,null,null,null,null,null,null,null,null,null,0]
[null,null,null,null,null,null,null,null,null,null,null,null,null,null,null,null,null,null,null,{"$f":"IF($D$2=D832,1,0)","v":0}]
[null,null,null,null,null,null,null,null,null,null,null,null,null,null,null,null,null,null,null,0]
[null,null,null,null,null,null,null,null,null,null,null,null,null,null,null,null,null,null,null,0]
[null,null,null,null,null,null,null,null,null,null,null,null,null,null,null,null,null,null,null,0]
[null,null,null,null,null,null,null,null,null,null,null,null,null,null,null,null,null,null,null,0]
[null,null,null,null,null,null,null,null,null,null,null,null,null,null,null,null,null,null,null,0]
[null,null,null,null,null,null,null,null,null,null,null,null,null,null,null,null,null,null,null,0]
[null,null,null,null,null,null,null,null,null,null,null,null,null,null,null,null,null,null,null,0]
[null,null,null,null,null,null,null,null,null,null,null,null,null,null,null,null,null,null,null,0]
[null,null,null,null,null,null,null,null,null,null,null,null,null,null,null,null,null,null,null,0]
[null,null,null,null,null,null,null,null,null,null,null,null,null,null,null,null,null,null,null,0]
[null,null,null,null,null,null,null,null,null,null,null,null,null,null,null,null,null,null,null,0]
[null,null,null,null,null,null,null,null,null,null,null,null,null,null,null,null,null,null,null,0]
[null,null,null,null,null,null,null,null,null,null,null,null,null,null,null,null,null,null,null,0]
[null,null,null,null,null,null,null,null,null,null,null,null,null,null,null,null,null,null,null,0]
[null,null,null,null,null,null,null,null,null,null,null,null,null,null,null,null,null,null,null,0]
[null,null,null,null,null,null,null,null,null,null,null,null,null,null,null,null,null,null,null,0]
[null,null,null,null,null,null,null,null,null,null,null,null,null,null,null,null,null,null,null,0]
[null,null,null,null,null,null,null,null,null,null,null,null,null,null,null,null,null,null,null,0]
[null,null,null,null,null,null,null,null,null,null,null,null,null,null,null,null,null,null,null,0]
[null,null,null,null,null,null,null,null,null,null,null,null,null,null,null,null,null,null,null,0]
[null,null,null,null,null,null,null,null,null,null,null,null,null,null,null,null,null,null,null,0]
[null,null,null,null,null,null,null,null,null,null,null,null,null,null,null,null,null,null,null,0]
[null,null,null,null,null,null,null,null,null,null,null,null,null,null,null,null,null,null,null,0]
[null,null,null,null,null,null,null,null,null,null,null,null,null,null,null,null,null,null,null,0]
[null,null,null,null,null,null,null,null,null,null,null,null,null,null,null,null,null,null,null,0]
[null,null,null,null,null,null,null,null,null,null,null,null,null,null,null,null,null,null,null,0]
[null,null,null,null,null,null,null,null,null,null,null,null,null,null,null,null,null,null,null,0]
[null,null,null,null,null,null,null,null,null,null,null,null,null,null,null,null,null,null,null,0]
[null,null,null,null,null,null,null,null,null,null,null,null,null,null,null,null,null,null,null,0]
[null,null,null,null,null,null,null,null,null,null,null,null,null,null,null,null,null,null,null,0]
[null,null,null,null,null,null,null,null,null,null,null,null,null,null,null,null,null,null,null,0]
[null,null,null,null,null,null,null,null,null,null,null,null,null,null,null,null,null,null,null,0]
[null,null,null,null,null,null,null,null,null,null,null,null,null,null,null,null,null,null,null,0]
[null,null,null,null,null,null,null,null,null,null,null,null,null,null,null,null,null,null,null,0]
[null,null,null,null,null,null,null,null,null,null,null,null,null,null,null,null,null,null,null,0]
[null,null,null,null,null,null,null,null,null,null,null,null,null,null,null,null,null,null,null,0]
[null,null,null,null,null,null,null,null,null,null,null,null,null,null,null,null,null,null,null,0]
[null,null,null,null,null,null,null,null,null,null,null,null,null,null,null,null,null,null,null,0]
[null,null,null,null,null,null,null,null,null,null,null,null,null,null,null,null,null,null,null,0]
[null,null,null,null,null,null,null,null,null,null,null,null,null,null,null,null,null,null,null,0]
[null,null,null,null,null,null,null,null,null,null,null,null,null,null,null,null,null,null,null,0]
[null,null,null,null,null,null,null,null,null,null,null,null,null,null,null,null,null,null,null,0]
[null,null,null,null,null,null,null,null,null,null,null,null,null,null,null,null,null,null,null,0]
[null,null,null,null,null,null,null,null,null,null,null,null,null,null,null,null,null,null,null,0]
[null,null,null,null,null,null,null,null,null,null,null,null,null,null,null,null,null,null,null,0]
[null,null,null,null,null,null,null,null,null,null,null,null,null,null,null,null,null,null,null,0]
[null,null,null,null,null,null,null,null,null,null,null,null,null,null,null,null,null,null,null,0]
[null,null,null,null,null,null,null,null,null,null,null,null,null,null,null,null,null,null,null,0]
[null,null,null,null,null,null,null,null,null,null,null,null,null,null,null,null,null,null,null,0]
[null,null,null,null,null,null,null,null,null,null,null,null,null,null,null,null,null,null,null,0]
[null,null,null,null,null,null,null,null,null,null,null,null,null,null,null,null,null,null,null,0]
[null,null,null,null,null,null,null,null,null,null,null,null,null,null,null,null,null,null,null,0]
[null,null,null,null,null,null,null,null,null,null,null,null,null,null,null,null,null,null,null,0]
[null,null,null,null,null,null,null,null,null,null,null,null,null,null,null,null,null,null,null,0]
[null,null,null,null,null,null,null,null,null,null,null,null,null,null,null,null,null,null,null,0]
[null,null,null,null,null,null,null,null,null,null,null,null,null,null,null,null,null,null,null,0]
[null,null,null,null,null,null,null,null,null,null,null,null,null,null,null,null,null,null,null,0]
[null,null,null,null,null,null,null,null,null,null,null,null,null,null,null,null,null,null,null,0]
[null,null,null,null,null,null,null,null,null,null,null,null,null,null,null,null,null,null,null,0]
[null,null,null,null,null,null,null,null,null,null,null,null,null,null,null,null,null,null,null,0]
[null,null,null,null,null,null,null,null,null,null,null,null,null,null,null,null,null,null,null,0]
[null,null,null,null,null,null,null,null,null,null,null,null,null,null,null,null,null,null,null,0]
[null,null,null,null,null,null,null,null,null,null,null,null,null,null,null,null,null,null,null,0]
[null,null,null,null,null,null,null,null,null,null,null,null,null,null,null,null,null,null,null,{"$f":"IF($D$2=D896,1,0)","v":0}]
[null,null,null,null,null,null,null,null,null,null,null,null,null,null,null,null,null,null,null,0]
[null,null,null,null,null,null,null,null,null,null,null,null,null,null,null,null,null,null,null,0]
[null,null,null,null,null,null,null,null,null,null,null,null,null,null,null,null,null,null,null,0]
[null,null,null,null,null,null,null,null,null,null,null,null,null,null,null,null,null,null,null,0]
[null,null,null,null,null,null,null,null,null,null,null,null,null,null,null,null,null,null,null,0]
[null,null,null,null,null,null,null,null,null,null,null,null,null,null,null,null,null,null,null,0]
[null,null,null,null,null,null,null,null,null,null,null,null,null,null,null,null,null,null,null,0]
[null,null,null,null,null,null,null,null,null,null,null,null,null,null,null,null,null,null,null,0]
[null,null,null,null,null,null,null,null,null,null,null,null,null,null,null,null,null,null,null,0]
[null,null,null,null,null,null,null,null,null,null,null,null,null,null,null,null,null,null,null,0]
[null,null,null,null,null,null,null,null,null,null,null,null,null,null,null,null,null,null,null,0]
[null,null,null,null,null,null,null,null,null,null,null,null,null,null,null,null,null,null,null,0]
[null,null,null,null,null,null,null,null,null,null,null,null,null,null,null,null,null,null,null,0]
[null,null,null,null,null,null,null,null,null,null,null,null,null,null,null,null,null,null,null,0]
[null,null,null,null,null,null,null,null,null,null,null,null,null,null,null,null,null,null,null,0]
[null,null,null,null,null,null,null,null,null,null,null,null,null,null,null,null,null,null,null,0]
[null,null,null,null,null,null,null,null,null,null,null,null,null,null,null,null,null,null,null,0]
[null,null,null,null,null,null,null,null,null,null,null,null,null,null,null,null,null,null,null,0]
[null,null,null,null,null,null,null,null,null,null,null,null,null,null,null,null,null,null,null,0]
[null,null,null,null,null,null,null,null,null,null,null,null,null,null,null,null,null,null,null,0]
[null,null,null,null,null,null,null,null,null,null,null,null,null,null,null,null,null,null,null,0]
[null,null,null,null,null,null,null,null,null,null,null,null,null,null,null,null,null,null,null,0]
[null,null,null,null,null,null,null,null,null,null,null,null,null,null,null,null,null,null,null,0]
[null,null,null,null,null,null,null,null,null,null,null,null,null,null,null,null,null,null,null,0]
[null,null,null,null,null,null,null,null,null,null,null,null,null,null,null,null,null,null,null,0]
[null,null,null,null,null,null,null,null,null,null,null,null,null,null,null,null,null,null,null,0]
[null,null,null,null,null,null,null,null,null,null,null,null,null,null,null,null,null,null,null,0]
[null,null,null,null,null,null,null,null,null,null,null,null,null,null,null,null,null,null,null,0]
[null,null,null,null,null,null,null,null,null,null,null,null,null,null,null,null,null,null,null,0]
[null,null,null,null,null,null,null,null,null,null,null,null,null,null,null,null,null,null,null,0]
[null,null,null,null,null,null,null,null,null,null,null,null,null,null,null,null,null,null,null,0]
[null,null,null,null,null,null,null,null,null,null,null,null,null,null,null,null,null,null,null,0]
[null,null,null,null,null,null,null,null,null,null,null,null,null,null,null,null,null,null,null,0]
[null,null,null,null,null,null,null,null,null,null,null,null,null,null,null,null,null,null,null,0]
[null,null,null,null,null,null,null,null,null,null,null,null,null,null,null,null,null,null,null,0]
[null,null,null,null,null,null,null,null,null,null,null,null,null,null,null,null,null,null,null,0]
[null,null,null,null,null,null,null,null,null,null,null,null,null,null,null,null,null,null,null,0]
[null,null,null,null,null,null,null,null,null,null,null,null,null,null,null,null,null,null,null,0]
[null,null,null,null,null,null,null,null,null,null,null,null,null,null,null,null,null,null,null,0]
[null,null,null,null,null,null,null,null,null,null,null,null,null,null,null,null,null,null,null,0]
[null,null,null,null,null,null,null,null,null,null,null,null,null,null,null,null,null,null,null,0]
[null,null,null,null,null,null,null,null,null,null,null,null,null,null,null,null,null,null,null,0]
[null,null,null,null,null,null,null,null,null,null,null,null,null,null,null,null,null,null,null,0]
[null,null,null,null,null,null,null,null,null,null,null,null,null,null,null,null,null,null,null,0]
[null,null,null,null,null,null,null,null,null,null,null,null,null,null,null,null,null,null,null,0]
[null,null,null,null,null,null,null,null,null,null,null,null,null,null,null,null,null,null,null,0]
[null,null,null,null,null,null,null,null,null,null,null,null,null,null,null,null,null,null,null,0]
[null,null,null,null,null,null,null,null,null,null,null,null,null,null,null,null,null,null,null,0]
[null,null,null,null,null,null,null,null,null,null,null,null,null,null,null,null,null,null,null,0]
[null,null,null,null,null,null,null,null,null,null,null,null,null,null,null,null,null,null,null,0]
[null,null,null,null,null,null,null,null,null,null,null,null,null,null,null,null,null,null,null,0]
[null,null,null,null,null,null,null,null,null,null,null,null,null,null,null,null,null,null,null,0]
[null,null,null,null,null,null,null,null,null,null,null,null,null,null,null,null,null,null,null,0]
[null,null,null,null,null,null,null,null,null,null,null,null,null,null,null,null,null,null,null,0]
[null,null,null,null,null,null,null,null,null,null,null,null,null,null,null,null,null,null,null,0]
[null,null,null,null,null,null,null,null,null,null,null,null,null,null,null,null,null,null,null,0]
[null,null,null,null,null,null,null,null,null,null,null,null,null,null,null,null,null,null,null,0]
[null,null,null,null,null,null,null,null,null,null,null,null,null,null,null,null,null,null,null,0]
[null,null,null,null,null,null,null,null,null,null,null,null,null,null,null,null,null,null,null,0]
[null,null,null,null,null,null,null,null,null,null,null,null,null,null,null,null,null,null,null,0]
[null,null,null,null,null,null,null,null,null,null,null,null,null,null,null,null,null,null,null,0]
[null,null,null,null,null,null,null,null,null,null,null,null,null,null,null,null,null,null,null,0]
[null,null,null,null,null,null,null,null,null,null,null,null,null,null,null,null,null,null,null,0]
[null,null,null,null,null,null,null,null,null,null,null,null,null,null,null,null,null,null,null,{"$f":"IF($D$2=D960,1,0)","v":0}]
[null,null,null,null,null,null,null,null,null,null,null,null,null,null,null,null,null,null,null,0]
[null,null,null,null,null,null,null,null,null,null,null,null,null,null,null,null,null,null,null,0]
[null,null,null,null,null,null,null,null,null,null,null,null,null,null,null,null,null,null,null,0]
[null,null,null,null,null,null,null,null,null,null,null,null,null,null,null,null,null,null,null,0]
[null,null,null,null,null,null,null,null,null,null,null,null,null,null,null,null,null,null,null,0]
[null,null,null,null,null,null,null,null,null,null,null,null,null,null,null,null,null,null,null,0]
[null,null,null,null,null,null,null,null,null,null,null,null,null,null,null,null,null,null,null,0]
[null,null,null,null,null,null,null,null,null,null,null,null,null,null,null,null,null,null,null,0]
[null,null,null,null,null,null,null,null,null,null,null,null,null,null,null,null,null,null,null,0]
[null,null,null,null,null,null,null,null,null,null,null,null,null,null,null,null,null,null,null,0]
[null,null,null,null,null,null,null,null,null,null,null,null,null,null,null,null,null,null,null,0]
[null,null,null,null,null,null,null,null,null,null,null,null,null,null,null,null,null,null,null,0]
[null,null,null,null,null,null,null,null,null,null,null,null,null,null,null,null,null,null,null,0]
[null,null,null,null,null,null,null,null,null,null,null,null,null,null,null,null,null,null,null,0]
[null,null,null,null,null,null,null,null,null,null,null,null,null,null,null,null,null,null,null,0]
[null,null,null,null,null,null,null,null,null,null,null,null,null,null,null,null,null,null,null,0]
[null,null,null,null,null,null,null,null,null,null,null,null,null,null,null,null,null,null,null,0]
[null,null,null,null,null,null,null,null,null,null,null,null,null,null,null,null,null,null,null,0]
[null,null,null,null,null,null,null,null,null,null,null,null,null,null,null,null,null,null,null,0]
[null,null,null,null,null,null,null,null,null,null,null,null,null,null,null,null,null,null,null,0]
[null,null,null,null,null,null,null,null,null,null,null,null,null,null,null,null,null,null,null,0]
[null,null,null,null,null,null,null,null,null,null,null,null,null,null,null,null,null,null,null,0]
[null,null,null,null,null,null,null,null,null,null,null,null,null,null,null,null,null,null,null,0]
[null,null,null,null,null,null,null,null,null,null,null,null,null,null,null,null,null,null,null,0]
[null,null,null,null,null,null,null,null,null,null,null,null,null,null,null,null,null,null,null,0]
[null,null,null,null,null,null,null,null,null,null,null,null,null,null,null,null,null,null,null,0]
[null,null,null,null,null,null,null,null,null,null,null,null,null,null,null,null,null,null,null,0]
[null,null,null,null,null,null,null,null,null,null,null,null,null,null,null,null,null,null,null,0]
[null,null,null,null,null,null,null,null,null,null,null,null,null,null,null,null,null,null,null,0]
[null,null,null,null,null,null,null,null,null,null,null,null,null,null,null,null,null,null,null,0]
[null,null,null,null,null,null,null,null,null,null,null,null,null,null,null,null,null,null,null,0]
[null,null,null,null,null,null,null,null,null,null,null,null,null,null,null,null,null,null,null,0]
[null,null,null,null,null,null,null,null,null,null,null,null,null,null,null,null,null,null,null,0]

{"sheet":"匯款性質(Purpose of Payment)","index":1,"n_rows":213,"n_cols":4,"rows_kept":213,"cut":false,"hidden":true,"merged":[[210,0,211,0],[210,1,211,1],[0,0,0,3],[204,0,205,0],[204,1,205,1],[206,1,207,1],[206,3,207,3],[208,0,209,0],[208,1,209,1],[198,0,199,0],[202,1,203,1],[202,3,203,3],[192,0,193,0],[192,1,193,1],[194,0,195,0],[194,1,195,1],[196,1,197,1],[196,3,197,3],[184,3,185,3],[186,0,187,0],[186,1,187,1],[198,1,199,1],[200,0,201,0],[200,1,201,1],[188,0,189,0],[188,1,189,1],[190,0,191,0],[190,1,191,1],[180,0,181,0],[180,1,181,1],[182,1,183,1],[172,1,173,1],[174,0,175,0],[174,1,175,1],[176,0,177,0],[176,1,177,1],[178,0,179,0],[178,1,179,1],[184,1,185,1],[168,0,169,0],[168,1,169,1],[170,0,171,0],[170,1,171,1],[162,0,163,0],[162,1,163,1],[164,1,165,1],[164,3,165,3],[166,1,167,1],[166,3,167,3],[158,0,159,0],[158,1,159,1],[160,0,161,0],[160,1,161,1],[152,1,153,1],[154,0,155,0],[154,1,155,1],[156,0,157,0],[156,1,157,1],[146,0,147,0],[146,1,147,1],[148,0,149,0],[148,1,149,1],[132,1,133,1],[134,1,135,1],[136,0,137,0],[150,0,151,0],[150,1,151,1],[140,0,141,0],[140,1,141,1],[142,0,143,0],[142,1,143,1],[144,0,145,0],[144,1,145,1],[136,1,137,1],[138,0,139,0],[138,1,139,1],[128,3,129,3],[130,0,131,0],[130,1,131,1],[124,1,125,1],[126,1,127,1],[128,1,129,1],[92,0,93,0],[92,1,93,1],[94,0,95,0],[94,1,95,1],[96,0,97,0],[96,1,97,1],[102,0,103,0],[124,0,125,0],[106,0,107,0],[106,1,107,1],[108,0,109,0],[108,1,109,1],[110,0,111,0],[110,1,111,1],[112,0,113,0],[112,1,113,1],[114,0,115,0],[118,0,119,0],[118,1,119,1],[120,0,121,0],[120,1,121,1],[122,0,123,0],[122,1,123,1],[102,1,103,1],[104,0,105,0],[104,1,105,1],[100,1,101,1],[98,0,99,0],[98,1,99,1],[114,1,115,1],[116,0,117,0],[116,1,117,1],[86,0,87,0],[86,1,87,1],[88,0,89,0],[88,1,89,1],[90,0,91,0],[90,1,91,1],[78,1,79,1],[80,0,81,0],[80,1,81,1],[82,0,83,0],[82,1,83,1],[84,0,85,0],[84,1,85,1],[72,0,73,0],[72,1,73,1],[74,0,75,0],[74,1,75,1],[76,0,77,0],[76,1,77,1],[66,0,67,0],[66,1,67,1],[68,0,69,0],[68,1,69,1],[70,0,71,0],[70,1,71,1],[60,0,61,0],[60,1,61,1],[62,0,63,0],[62,1,63,1],[64,0,65,0],[64,1,65,1],[53,0,54,0],[53,1,54,1],[55,0,56,0],[55,1,56,1],[58,0,59,0],[58,1,59,1],[47,0,48,0],[47,1,48,1],[49,0,50,0],[49,1,50,1],[51,0,52,0],[51,1,52,1],[39,1,40,1],[41,0,42,0],[41,1,42,1],[43,0,44,0],[43,1,44,1],[45,0,46,0],[45,1,46,1],[7,1,8,1],[9,1,10,1],[11,1,12,1],[3,1,4,1],[5,1,6,1],[21,1,22,1],[33,1,34,1],[35,1,36,1],[37,1,38,1],[27,1,28,1],[29,1,30,1],[31,1,32,1],[23,1,24,1],[25,1,26,1],[13,1,14,1],[15,1,16,1],[17,1,18,1],[19,1,20,1]]}
["匯出匯款之分類及說明\nCode and Description of Outward Remittance Classification"]
["大項","分類編號","項     目","說                     明"]
["Category","Code","Item","Description"]
["一",null,"服務支出","分為運輸、保險、旅行及其他四大項。"]
[null,null,"Service expenditures","Classified into four categories –transportation, insurance, travel and others"]
["(一)",null,"運輸支出","居民支付非居民海陸空之客貨運輸支出，分為下列各項："]
[null,null,"Transportation expenditures","Payments to non-residents by residents for transportation service by sea, land and air:"]
[null,111,"海運貨運費支出","支付海上貨物運輸費用。"]
[null,null,"Cargo shipping expenditures","To pay for cargo shipping service."]
[null,112,"海運客運費支出","支付海上旅客運輸費用。"]
[null,null,"Passenger shipping expenditures","To pay for passenger shipping service."]
[null,115,"航空貨運費支出","支付航空貨物運輸費用。"]
[null,null,"Airfreight expenditures","To pay for airfreight service."]
[null,116,"航空客運費支出","支付航空旅客運輸費用。"]
[null,null,"Air passenger service expenditures","To pay for airline passenger service."]
[null,119,"其他運輸支出","上述各項以外之運輸支出，請詳述性質，如陸路運輸、貨物裝卸、倉儲、港口機場費用、客貨運有關的佣金及代理費等支出。"]
[null,null,"Other transportation-related expenditures","Transportation expenditures other than those items described above (please specify the purpose (residents)/source (non-residents) of payment), such as expenditures incurred from land transportation, loading/unloading, warehousing, harbor/airport fees, commissions and agency fees related to cargo and passenger transportation."]
["(二)",null,"保險支出","各種保險之保費、再保費及保險業之理賠支出，分為下列各項："]
[null,null,"Insurance expenditures","Insurance premiums, reinsurance fees, and insurance claims, which are classified as follows:"]
[null,121,"財產保險支出","居民投保財產保險之保費及再保費支出。"]
[null,null,"Non-life insurance expenditures","Residents paying for non-life insurance premiums and reinsurance fees."]
[null,122,"財產保險理賠支出","居民承保財產保險及再保險所支付之保險賠款與給付(包括透過保險經紀人安排者)。若非因保險之損害賠償或撫恤金等，請填報(599)「其他移轉支出」。"]
[null,null,"Payments for non-life insurance claim","Claims and benefits paid by residents for non-life insurance and reinsurance underwritten (including underwriting arranged through insurance brokers).  For non-insurance related indemnities or relief payments, fill in“599” – Other transfer payments."]
[null,123,"人身保險支出","居民投保人身保險之保費及再保費支出。"]
[null,null,"Life insurance expenditures","Residents paying for life insurance premiums and reinsurance fees."]
[null,129,"人身保險理賠支出","居民承保人身保險及再保險所支付之保險賠款與給付(包括透過保險經紀人安排者)。若非因保險之損害賠償或撫恤金等，請填報(599)「其他移轉支出」。"]
[null,null,"Payments for life insurance claim","Claims and benefits paid by residents for life insurance and reinsurance underwritten (including underwriting arranged through insurance brokers).  For non-insurance related indemnities or consolation payments, fill in “599” – Other transfer payments."]
["(三)",null,"旅行支出","居民出國旅行支出或在國外短期居留（未滿一年）之支出（不含進出國境之機船票款，該款項請列入運輸支出），分為下列各項："]
[null,null,"Traveling expenditures","Expenditures of residents incurred from traveling abroad or short stay abroad (less than one year) (excluding cross-border air fare and steamer ticket which should be classified as transportation expenditures), which are classified as follows:"]
[null,131,"商務支出","居民出國洽辦商務之旅費支出。"]
[null,null,"Business expenditures","Traveling expenditures of residents taking business trips abroad."]
[null,132,"觀光支出","居民出國觀光旅費支出，含旅行社團費、遊學等。"]
[null,null,"Tourism expenditures","Traveling expenditures of residents for tours abroad, including charges of the traveling agency and short-term course."]
[null,134,"留學支出","居民留學（居留國外可一年以上）之學費及生活費。"]
[null,null,"Expenditures of studying abroad","Residents paying for the tuition and living expenditures of students studying abroad (including students staying abroad for more than one year)."]
[null,135,"信用卡支出","居民在國外之信用卡、金融卡消費支出。"]
[null,null,"Credit card payment","Residents paying for credit cards or debit cards charges incurred abroad."]
[null,139,"其他旅行支出","上述各項以外之旅行支出，請詳述性質，如講學、就醫（居留國外可一年以上）、競賽等。"]
[null,null,"Other traveling expenditures","Traveling expenditures other than those described above (please specify the purpose of payment), such as giving lectures, seeking medical treatments (including expenditures of those staying abroad for more than one year), or participating in tournaments or contests. "]
["(四)",null,"運保費及旅行以外之其他服務支出","分為下列各項："]
[null,null,"Other service expenditures for services other than those of transportation, insurance and traveling","Classified into the following items:"]
[null,191,"文化及休閒支出","居民支付國外所提供博物館及其他文化、體育與休閒娛樂有關的活動支出，包括函授課程及遠距教學費用。"]
[null,null,"Cultural and leisure expenditures","Expenditures incurred by residents for museum visits and other culture, sports, leisure and entertainment related activities provided abroad, including expenditures of correspondence and distance learning courses. "]
[null,192,"貿易佣金及代理費支出","居民支付國外所提供與貿易有關的服務之佣金及代理費用。"]
[null,null,"Trade commission and agency expenditures","Residents paying for commissions and agency fees for trade-related services provided abroad."]
[null,193,"營建支出","居民支付非居民承包國內營建工程(包括建築及土木工程之興建、修繕、土地整理及其相關之管線、系統工程的安裝及建案管理)的支出，或居民承包國外工程匯出支付在國外採購的商品及服務支出。若屬建築設計支出請填報(19D)「專業技術事務支出」。"]
[null,null,"Payments related to local construction project","Residents paying non-resident contractors of local construction projects (including construction, repair, and land consolidation services for buildings and civil engineering projects, related pipeline and system installation, and project management services), or residents paying for purchase of products and services abroad in connection with overseas contracted project.  For architectural design expenditures, fill in “19D” - Professional and technical service expenditures."]
[null,194,"金融服務支出","居民支付國外為辦理各種金融業務(如外匯交易、證券交易、衍生金融商品交易、資產管理、代客金融操作與證券保管等服務)所產生的手續費及佣金支出。"]
[null,null,"Financial service expenditures","Residents paying for fees and commissions for financial services (e.g. transactions of foreign exchange, securities, and financial derivatives, asset management, discretionary account services, and securities custody services) provided by a foreign company or individual. "]
[null,195,"使用智慧財產權支出","居民支付使用國外智慧財產權(例如專利權、商標、經銷權、版權、著作權或工業製程與設計等)之費用，包括影視、廣播及音樂等播送權或重製權所支付之權利金。若係購買智慧財產權，請按交易性質分別填報(19P)「購買研發成果資產之支出」或(540)「購買自然資源與非研發成果資產支出」。"]
[null,null,"Payments for authorized use of intellectual property rights","Residents paying for expenditures incurred from the use of foreign intellectual property rights (e.g. patents, trademarks, distribution rights, publication rights, copyrights or industrial processes and designs), including royalties paid for the right to broadcast or reproduce film, television, radio and musical productions. For the purchase of intellectual property rights, fill in“19P” –R&D assets purchase expenditures or “540”- Natural resources and non- R&D assets purchase expenditures”, depending on the nature of transaction."]
[null,196,"我國民間機構在國外辦公費用","居民支付在國外非營利組織或無營利事業登記之分支機構、辦事處或聯絡處之辦公費用(包括派駐國外人員薪資)。若為當地雇員薪資，請填報(410)「非居民薪資匯出」。"]
[null,null,"Overseas office expenses","Residents paying for office expenses (including wages and salaries of employees stationed abroad) of a non-profit organization, or a branch office, a representative office or a liaison office that without business registration abroad.  For wages and salaries of local employees, fill in “410” - Outward remittance of non-resident’s wages and salaries."]
[null,"19A","郵務與快遞支出","居民使用國外郵務與快遞服務支出。"]
[null,null,"Postal and courier service expenses","Residents paying for postal and courier services abroad."]
[null,"19B","電腦與資訊支出","居民支付國外提供的電腦、資訊與新聞相關之服務，包括一、支付國外有關電腦軟硬體的開發、設計、諮詢、管理、安裝、資料處理及相關設備維修的費用。二、使用國外資料庫、圖書館及檔案管理等服務的費用。三、向國外訂購報紙、期刊及書籍（未經進口報關）的支出。四、支付國外新聞代理、照片和報導的費用。"]
[null,null,"Computer and information expenditures","Residents paying for computer, information and news related services provided abroad, including 1. Expenditures for the development of software and hardware, design, consultation, management, installation, data processing, and maintenance of related computer equipment; 2. Expenditures for the use of foreign database, library and file management services; 3. Expenditures for the subscription of newspapers, journals, and books (not by customs declaration); and 4. Expenditures for overseas news agencies, photos and reports."]
[]
[null,"19C","營業租賃支出","居民租用國外營運器具所支付的租金（如運輸設備租金支出），惟資本租賃除外。"]
[null,null,"Leasing expenditures","Residents paying for rental for the leasing of operating facilities (such as leasing of transportation equipment), but excluding capital leasing."]
[null,"19D","專業技術事務支出","居民支付國外有關法律、會計、管理顧問、公關、廣告、市場調查、民意測驗、商業展覽、公證、檢驗及建築設計等服務之支出，包括董監事酬勞。"]
[null,null,"Professional and technical service expenditures","Residents paying for professional services such as legal, accountant, management consultant, public relations, advertising, market survey, poll, commercial exhibition, public notary, examination, architectural design, etc., including remuneration of directors and supervisors."]
[null,"19E","視聽支出","居民支付國外製作及演出影視、廣播與音樂等報酬，或支付自國外下載影音及收看頻道的費用。若屬前述視聽播送權或重製權之權利金費用，請填報(195)「使用智慧財產權支出」。"]
[null,null,"Video-audio expenditures","Residents paying for remuneration for film, television, radio and musical productions and performances abroad, or for expenses incurred in video/audio downloads, and channel rental; for royalties paid for the right to broadcast or reproduce video/audio productions described above, fill in“195”- Payments for authorized use of intellectual property. "]
[null,"19F","外國政府機構之服務收入匯出款","外國使領館及其他政府機構在台收取的領事簽證費、規費，及居民自行支付外國政府簽證費、規費的匯出。"]
[null,null,"Outward remittance of service income of foreign government agency","Outward remittance of visa fees and service fees received by foreign consulates in the R.O.C., and payment of visa fees and service fees to foreign government by residents."]
[null,"19G","軍政機關其他服務支出","上述各項以外之我軍政機關服務支出，包括匯往我駐外單位之款項(含派駐人員薪資)。若為當地雇員薪資，請填報(410)「非居民薪資匯出」。軍政機關如有旅行或對外採購軍品物資等非屬本項支出，應填相關之匯款分類。"]
[null,null,"Other service expenditures of civil or military organs","Payments for services other than those described above by civil or military organs, including money remitted to government’s representative offices abroad (including wages and salaries of employees stationed abroad).  For wages and salaries of local employees, fill in “410” - Outward remittance of non-resident’s wages and salaries. Other expenditures of civil or military organs not included under this item, such as expenses of traveling or purchase of military supply should be put down relevant remittance code."]
[null,"19H","加工費支出","居民支付國外加工、組裝服務之費用。"]
[null,null,"Processing fee expenditures","Residents paying for processing and assembly services provided abroad. "]
[null,"19J","電信支出","居民支付國外電信服務之費用。"]
[null,null,"Telecommunication expenditures","Residents paying for telecommunication services provided abroad."]
[null,"19K","維修支出","居民支付國外維修服務之費用，如船舶、航空器及其他運輸工具之維修，但建築或電腦的維修請分別填報(193)「營建支出」及(19B)「電腦與資訊支出」。"]
[null,null,"Repair/maintenance expenditures","Residents paying for repair/maintenance services provided abroad, such as repair/maintenance of ships, aircrafts and other transportation vehicles.  For repair/maintenance of buildings or computers, fill in“193” - Payments related to local construction project or “19B” - Computer and information expenditures."]
[null,"19P","購買研發成果資產之支出","居民購買國外的研發成果所有權(例如專利權、版權、工業製程與設計等)之支出。若購買品牌、商標、經銷權等請填報(540)「購買自然資源與非研發成果資產支出」；若係支付國外使用研發成果之支出，請填報(195)「使用智慧財產權支出」。"]
[null,null,"R&D asset purchase expenditures","Residents paying for acquisition of R&D asset ownership (e.g. patents, publication rights, industrial processes and designs, etc.).  For purchase of trade names, trademarks or distribution rights, fill in “540” - Natural resources and non- R&D assets purchase expenditures.  For expenses incurred in the use of foreign R&D assets, fill in “195” - Payments for authorized use of intellectual property rights. "]
[null,199,"其他服務支出","上述各項以外的無相關主體項目(如服裝設計費)之服務支出，請詳述性質。若有主體項目則歸入前述各項，如建築設計支出請填報(19D)「專業技術事務支出」。"]
[null,null,"Other service expenditures","Payments for services other than those described above and not relating to any subject matter project (e.g. fashion design fee), specify the purpose (residents)/source (non-residents) of payment. If there is a subject matter project, put the payment under relevant items described above. For example, for architectural design expenses, fill in “19D”- Professional and technical service expenditures.  "]
["二",null,"本國資金流出","分為下列各項："]
[null,null,"Outflow of domestic funds","Classified into the following items:"]
[null,210,"對外股本投資","居民直接投資國外事業之股本，包括股本轉讓及分公司營運資金。"]
[null,null,"Outward direct investments","Resident’s direct investments in the capital stock of a foreign business, including the transfer of capital stock and operating funds of branch offices."]
[null,220,"對外貸款投資","居民對其在國外直接投資事業之貸款。"]
[null,null,"Outward loan investments","Residents’ loans to their direct overseas investments."]
[null,250,"存放國外銀行","居民存放資金於國外銀行。匯款時可決定嗣後在國外之用途者不得列入本項，應依其用途作適當的分類。"]
[null,null,"Deposits overseas","Funds deposited overseas by residents.  The remittance should be put under the proper item instead of this item if subsequent use of the funds abroad is decided at the time of remittance. "]
[null,262,"投資國外股權證券","居民投資國外股份、股票、權證、存託憑證、共同基金及投資信託之資金。"]
[null,null,"Investments in overseas equity stocks","Residents’ investments (principal) in overseas shareholdings, stocks, warrants, depository receipts, mutual funds and investment trusts."]
[null,263,"投資國外長期債票券","居民投資國外長期（發行期限超過一年）債票券。若為居民投資非居民在台發行長期債票券，請填報(282)「外人在台發行長期債票券」。"]
[null,null,"Investments in overseas long-term bonds and notes","Residents’ investments (principal) in overseas long-term bonds and notes (with an original maturity longer than one year).  In case of residents investing in long-term bonds and notes issued by non-residents in the R.O.C., fill in“282” - Issuance of long-term bonds and notes in the R.O.C. by overseas nationals."]
[null,264,"投資國外短期債票券","居民投資國外短期（發行期限一年及一年以下）債票券。"]
[null,null,"Investments in overseas short-term notes and bills","Resident’s investments in overseas short-term notes and bills (with an original maturity of one year or less)."]
[null,266,"國外有本金交割的遠匯及換匯之資金匯出","居民支付國外有本金交割的外匯遠期及換匯之資金；但與國內銀行交易者不得列入本項，請依性質列入「其他匯出款—國內交易」之相關細項。"]
[null,null,"Outward remittance of funds for overseas deliverable forward and swap transactions","Residents paying for overseas deliverable forward (DF) foreign exchange and swap transactions.  Funds remitted for transactions with domestic banks may not be put under this item but under the related sub-item of “Other outward remittances –Domestic transactions” based on the nature of remittance."]
[null,267,"國外無本金交割的衍生金融商品之資金匯出","居民支付與非居民有本金交割以外的衍生金融商品之資金，包括匯出的保證金、權利金及損失等；但與國內銀行交易者不得列入本項，請依性質列入「其他匯出款—國內交易」之相關細項。"]
[null,null,"Outward remittance of funds for overseas non-deliverable derivative transactions ","Residents paying for overseas non-deliverable derivative transactions with non-residents, including margins, premiums and losses incurred.  Funds remitted for transactions with domestic banks may not be put under this item but under the related sub-item of “Other outward remittances –Domestic transactions” based on the nature of remittance."]
[null,270,"投資國外不動產","居民投資國外土地、房屋等不動產之資金。"]
[null,null,"Investments in overseas real estate","Resident’s investments in overseas real estate, such as land and houses."]
[null,280,"對外融資貸款","居民融資貸款予非居民，包括代墊款、週轉金等；若係對國外直接投資事業之貸款，請填報(220)「對外貸款投資」。"]
[null,null,"Loan financing to non-resident abroad","Resident’s loan financing to non-residents, including advances, working funds etc. For loans to direct overseas investments, fill in“220” - Outward loan investments. "]
["三",null,"外國資金流出","非居民收回各項投資本國的資金(含資本利得與損失)；但固定期間配發的各項所得(如利息、股利等)，請依性質列入「外資投資所得」各細項。外國資金流出分為下列各項："]
[null,null,"Outflows of foreign funds","Non-residents recovering funds from investment in the R.O.C. (including capital gain and loss); but for income distributed on a regular basis (e.g. interest and dividend), put under the sub-items of “Foreigner’s investment income”; outflows of foreign funds are classified into the following items:"]
[null,330,"國外信託資金匯出","國內證券投信業者匯出原投資於我國之國外信託資金。"]
[null,null,"Outward remittance of foreign trust funds invested in the R.O.C.","Domestic investment trust business remitting original investments in foreign trust funds in the R.O.C."]
[null,340,"償還國外借款","居民償還向國外借入之資金，包括代墊款、週轉金等，銀行對外履行借款保證責任時亦屬之；若屬償還外資直接投資股東之貸款投資款，請填報(320)「償還僑外貸款投資」。"]
[null,null,"Repayments of overseas borrowing ","Residents paying back funds borrowed abroad, including advances and working funds etc., as well as bank’s guarantee payments (fulfilling the guarantee responsibility). For repaying loan investment from direct non-resident shareholder, fill in“320” - Repayments of loan investments by foreign nationals and overseas Chinese."]
[null,341,"償還海外公司債","居民贖回其海外公司債之資金匯出，包括轉換股票後在國內股票市場售出所得資金匯出。"]
[null,null,"Repayments of corporate bonds issued overseas","Residents remitting outward funds for the redemption of corporate bonds issued overseas, including the proceeds from sale of converted stocks in the domestic stock exchange."]
[null,350,"外人存款收回","非居民收回存放於我國之存款（非證券投資戶）。"]
[null,null,"Withdrawal of deposits by foreign nationals","Non-residents withdrawing deposits in the R.O.C. (not for the local securities investments)."]
[null,360,"外人證券投資匯回","非居民匯回投資國內證券之資金(含資本利得與損失)。"]
[null,null,"Outward remittance of securities investments by foreign nationals","Non-residents remitting outward funds invested in local securities (including capital gain and loss)."]
[null,365,"外人交易衍生金融商品匯回","非居民匯回其原與國內交易衍生金融商品之資金，包括保證金、權利金及利得等。"]
[null,null,"Outward remittance of proceeds from financial derivative transactions by foreign nationals","Non-residents remitting outward proceeds from financial derivative transactions in the R.O.C., including margins, premiums and gains."]
[null,366,"外人借券保證金匯出","非居民匯回其借券交易之保證金。"]
[null,null,"Outward remittance of cash collateral received by foreign nationals for securities lending","Non-residents remitting outward cash collateral received for securities lending transactions."]
[null,370,"外人收回不動產投資","非居民收回投資國內不動產之資金。"]
[null,null,"Withdrawal of real estate investment by foreign nationals","Non-residents withdrawing funds invested in local real estate."]
[null,380,"海外存託憑證贖回","居民為贖回其海外存託憑證所匯出之資金。"]
[null,null,"Redemption of global depository receipts","Residents remitting outward funds to redeem his global depository receipts."]
[null,391,"償還分期付款進口融資","居民償還國外賣方之進口融資。"]
[null,null,"Installment payments for import financing","Residents paying back principal of import financing by foreign sellers in installments."]
[null,392,"資本租賃支出","居民向國外以融資方式承租物品之租金支出。"]
[null,null,"Capital leasing expenditures","Resident paying for foreign financing of leasing (principal)."]
[null,399,"其他外國資金流出","上述各項以外之外國資金流出，請詳述性質，如匯回押標金、保證金(不含交易衍生金融商品及借券交易之保證金)等"]
[null,null,"Other outflows of foreign funds","Outflows of foreign funds other than those described above (please specify the purpose (residents)/source (non-residents) of payment), such as bid bonds or performance bonds (excluding margins or cash collaterals for financial derivatives or securities lending)."]
["四",null,"所得支出","分為薪資支出及外資投資所得支出兩大項。"]
[null,null,"Payments for gains and income","Classified into two subcategories as payments for salaries and payments for foreigner’s investments income."]
["(一)",null,"薪資支出"]
[null,null,"Payments for salaries"]
[null,410,"非居民薪資匯出","在台外籍人員（憑護照或未滿一年之居留證）薪資匯出（或由其雇主代匯），及支付駐外軍政機關或無營利事業登記之國外分支機構當地雇員薪資款。若在台居留超過一年者，請填報(511)「工作者移轉支出」。"]
[null,null,"Outward remittance of non-resident’s wages and salaries","Outward remittance of wages and salaries of foreign employees in the R.O.C. (based on passport or residence permit showing stay of less than one year, or remitted by the employer), and payments for wages and salaries of local employees at an overseas branch office of a civil or military organ or the overseas branch office without business registration; for foreign employees who have stayed in the R.O.C. for more than one year, fill in “511” – Outward remittance by guest workers."]
["(二)",null,"外資投資所得(不含資本利得或損失)","投資所得係指固定期間所配發的利息、紅利、盈餘或股利；若是外資投資所產生買賣的價差視為「資本利得或損失」，不得列入各項投資所得，請依性質列「外國資金流出」各細項。外資投資所得分為下列各項："]
[null,null," investment income of foreign nationals (excluding capital gain or loss)","Investment income refers to interest, bonus, surplus or dividends distributed periodically; the difference between buying and selling prices incurred in foreigner’s investment is treated as “capital gain or loss”, which may not be put under investment gain, but under the sub-items of “Outflows of foreign funds” based on the nature of remittance. Investment income of foreign nationals is classified into the following items:"]
[null,440,"國外借款利息","居民向國外借款所支付之利息，包括資本租賃之利息支出。"]
[null,null,"Interest of overseas borrowing","Interest paid by resident for foreign borrowing, including interest expenditures of capital leasing."]
[null,441,"僑外股本投資的盈餘或股利","非居民直接投資於國內產業股本之紅利、盈餘及股利所得。"]
[null,null,"Surplus or dividend income of foreign nationals and overseas Chinese from equity investments in the R.O.C.","Bonus, surplus and dividends earned by non-residents from direct equity investments in R.O.C. enterprises."]
[null,442,"股權證券股利","非居民投資國內股份、股票、權證、存託憑證、共同基金及投資信託等股權證券之股利，或居民匯出配發在國外發行的股票、存託憑證等股權證券股利之款項。"]
[null,null,"Dividend income from equity securities","Non-resident’s dividend income from equity securities such as domestic shareholding, stocks, warrants, depository receipts, mutual funds and investment trusts or resident’s outward remittance of dividends on stocks or depository receipts issued overseas."]
[null,443,"外人存款利息","非居民匯出在國內存款之利息所得。"]
[null,null,"Deposit interest of foreign nationals","Outward remittances of interest from deposits in R.O.C banks by non-residents."]
[null,444,"有關進口之利息","居民支付國外賣方遠期信用狀、託收或分期付款進口融資等之利息支出。"]
[null,null,"Import finance related interest","Residents paying for the interest incurred from a foreign seller’s usance L/C, collection of payment or import financing by installment payment."]
[null,445,"長期債票券利息","非居民投資國內長期(發行期限超過一年)債票券的利息，或居民匯出配發海外長期債票券的利息。"]
[null,null,"Interest earned from long-term bonds and notes","Interest received by non-residents from long-term bonds and notes in R.O.C. (with an original maturity longer than one year) or residents remitting out interest income from overseas long-term bonds and notes."]
[null,446,"短期債票券利息","非居民投資短期(發行期限一年及一年以下)債票券的利息，或居民匯出配發海外短期債票券的利息。"]
[null,null,"Interest earned from short-term notes and bills","Interest received by non-residents from short-term notes and bills in R.O.C. (with an original maturity of one year or less) or a resident remitting out interest income from overseas short-term notes and bills."]
[null,448,"僑外貸款投資利息","居民支付非居民直接投資股東之貸款利息。"]
[null,null,"Interest on loan investments by foreign nationals and overseas Chinese","Residents paying interest on loans from direct non-resident shareholders."]
[null,449,"其他外資投資所得","上述各項以外之外資投資所得匯出，請詳述性質，如房屋、土地的租金支出。"]
[null,null,"Other investment income of  foreign nationals","Outward remittance of investment income of non-residents other than those described above (please specify the purpose (residents)/source (non-residents) of remittance), such as house or land rental."]
["五",null,"移轉支出","無償性或無相對報酬性之支出，分為下列各項："]
[null,null,"Transfer payments","Free-gratis or non-compensated payments are classified into the following items:"]
[null,511,"工作者匯款支出","在台居留一年以上之外籍工作者的薪資匯出款（或由其雇主代匯）。"]
[null,null,"Outward remittance by guest workers","Outward remittance of wages and salaries of foreign workers staying in R.O.C. for more than one year (or remitted by the employers)."]
[null,520,"捐贈匯款支出","軍政機關以外之居民對國外之捐獻或贈與款。"]
[null,null,"Donation remittance","Residents other than civil or military organs making donations to other countries."]
[null,540,"購買自然資源與非研發成果資產支出","向國外購買自然資源(包括土地、採礦權、伐木權、漁獵權、水域及領空等)及無形資產(包括品牌、商標、經銷權、網域名稱等)所有權的支出。若購買專利權、版權等請填報(19P)「購買研發成果資產之支出」。"]
[null,null,"Natural resources and non- R&D assets purchase expenditures","Expenses incurred in acquiring natural resources (including land, mining rights, logging rights, fishing and hunting rights, waters and air space)  and ownership of intangible assets (including trade names, trademarks, distribution rights, domain names, etc.) abroad; for the purchase of patents or copyrights, fill in“19P” –R&D assets purchase expenditures."]
[null,580,"政府移轉支出","我軍政機關對國外之移轉支出，如捐贈、繳交國際組織會費等。"]
[null,null,"Government transfer payments","Transfer payments of civil or military organs, such as donations and membership fees for international organizations."]
[null,599,"其他移轉支出","上述各項以外之移轉支出，請詳述性質，如違約金、補助款、獎學金、會員費、非居民合法繼承台灣地區人民遺產及其孳息、支付稅款、規費、彩券票款或獎金、非因保險給付之損害賠償、撫恤金等。"]
[null,null,"Other transfer payments","Transfer payments other than those described above (please specify the purpose (residents)/source (non-residents) of payment), such as default penalty, aid, scholarship, membership fees, non-resident’s legal inheritance of assets of residents and interest accrued, payment of tax and fees, lottery or prize, non-insurance related indemnity or relief payment. "]
["六",null,"其他匯出款"]
[null,null,"Other remittances items"]
["(一)",null,"其他國外交易"]
[null,null,"Other overseas transactions"]
[null,611,"出口貨款退回","包括出口貨款退回、出口貨款折讓及出口貨品瑕疵理賠等。若係跟單交易之貨款退回或拒付還款請列報為原來出口之減項。"]
[null,null,"Returns of export payments","Including returns of export payments, and payments for claims of defect. In the case of returns of payments in L/C negotiations or unpaid after L/C negotiations, declare as a minus item under the export L/C negotiation item on “Daily Transaction Report”."]
[null,619,"其他匯出款","除資本項目（2、3字頭）及611、612以外之其他匯入匯款退匯。詳述性質時，請註明原匯入匯款分類編號或項目名稱。"]
[null,null,"Other outward remittances","Returns of inward remittances other than 611, 612 and capital items (with prefix 2 or 3); when specifying the nature of remittance, please note the code or item name of the original inward remittance."]
["(二)",null,"國內交易","發生於國內之外匯交易（包括衍生金融商品交易），國別應填報為本國；若匯出至國際金融業務分行OBU者，不得列入國內交易，請依國外交易的匯款性質作適當分類，分為下列各項："]
[null,null,"Domestic transactions","For foreign exchange transactions (including financial derivative transactions) executed within the R.O.C., the country should be indicated as the R.O.C.; outward remittance to OBUs may not be put under domestic transactions, but should be classified into the foreign transaction’s items based on the nature of outward remittance. The domestic transaction’s items are classified as follows:"]
[null,692,"兌購外匯存外匯存款","客戶以新台幣結購外匯存入外匯存款時，不論其外匯支出之性質為何，指定銀行於水單上皆編製本項分類編號，並請加註客戶原結購性質；未以新台幣結購外匯者不得列入本項。"]
[null,null,"Purchase of foreign exchange and deposit into foreign currency deposit account","When a customer buys foreign currency with the New Taiwan dollar and deposits it in a foreign currency account, the authorized bank shall put down this code on the “Foreign Exchange Memo”, regardless the nature of the foreign exchange payment, and annotate customer’s original intent; do not use this code if the foreign exchange is not settled with the New Taiwan dollar."]
[null,693,"由本行轉往國內他行之外匯","本項非屬客戶填報之性質，而為指定銀行使用之分類編號。當外匯轉往國內他行時（不含聯行及各國際金融業務分行OBU），不論是否需經國外銀行轉帳，指定銀行於水單或憑證上皆編製本項分類編號，並請加註客戶原支出性質。匯往國際金融業務分行OBU者，不得列入本項，應依其原匯款性質作適當的分類。"]
[null,null,"Foreign exchange transferred to another domestic bank","This code is used only by authorized banks. When foreign exchange is transferred to another domestic bank (excluding  inter-branch transfer and with OBUs), the authorized bank should put down this code and note the original nature of payment by customer on the “Foreign Exchange Memo” or “Transactions Memo”, regardless whether the remittance transferred through  banks abroad. If the remittance is transferred to OBUs, do not use this code; use the code for the original nature of remittance instead."]
[null,694,"外幣互換兌出","兩種不同外幣間之互相轉換，轉換前之外幣列報本項。"]
[null,null,"Converting one foreign currency to another","Foreign currency converted from another foreign currency shall be reported. The original foreign currency should be put down in this item."]
[null,695,"未有資金流動之交易","客戶之外匯資金僅在同一銀行內部（包括聯行間但不含OBU）轉帳未匯出至他行者，如外匯活存定存互轉、定存到期展期續存、不同客戶間外匯轉讓、償還國內銀行外幣貸款、應收帳款承購收回、外幣貸款利息、支付國內銀行外幣手續費、呆帳沖銷、國內外匯交易損失、外匯交易保證金提存、結購外幣供保值等，請詳述性質。"]
[null,null,"Transaction without flow of funds","If a customer’s foreign exchange is transferred within the bank (including inter-branches, but not including OBU’s), for example transfers between time deposit and demand deposit, carry over of time deposit, foreign exchange transfers between customers, repayment of foreign currency loans extended by domestic banks, buyback of accounts receivables, interest payment of foreign currency loans, paying foreign currency service fees to authorized banks, write-off,  foreign currency transaction losses (incurred inside the country), deposit/withdrawal of foreign exchange transaction margin, or buying foreign currency for maintenance of value, please specify the nature of these transactions."]
["七",null,"支付商品貿易之貨款(含非居民於國內供貨及國外供貨)","支付商品貿易之貨款分為下列各項；若為分期付款與金融租賃的貨款本金支出請分別填報於(391)「償還分期付款進口融資」與(392)「資本租賃支出」。"]
[null,null,"Payments for imported goods (including onshore and offshore deliveries by non-residents)","Payments for imported goods are classified into the following items: for installment payments or capital leasing (principal), fill in “391” - Installment payments for import financing or “392”- Capital leasing expenditures."]
["(一)",null,"進口通關的貨款"]
[null,null,"Payments for customs-cleared imported goods"]
[null,"70A","付款人已自行辦理進口通關的貨款","貨品已由付款人辦理進口通關的貨款，包括個人進口之貨款。"]
[null,null,"Payments for imported goods with customs clearance handled by payee ","Payments for imported goods with customs clearance handled by payee, including payments for personal purchase."]
[null,701,"尚未進口之預付貨款","預付之進口貨品價款，貨品將在國內通關進口。"]
[null,null,"Prepayments for goods not yet imported","To pay for goods to be imported in advance. Such goods will be cleared through customs and imported into the R.O.C."]
[null,702,"燃油費及補給支出","我國運輸工具在國外港口或機場接受油料或物資等補給之支出。"]
[null,null,"Fuel and supply payments","To pay for fuel or supply received by transportation vehicle from R.O.C. at a foreign port."]
[null,704,"樣品費支出","居民支付國外樣品費。"]
[null,null,"Payments for samples","Residents paying for samples from abroad."]
[null,706,"非由付款人自行辦理進口通關的貨款","付款人提供相關文件證明貨物已由國內其他業者辦理進口通關，但貨款由其支付國外，否則，請填報(801)。"]
[null,null,"Payments for imported goods with customs clearance not handled by payee","Payments for imported goods with payee providing relevant proof documents showing that customs clearance formalities have been handled by the other domestic entities.  If relevant proof documents are not presented, fill in“801”."]
["(二)",null,"未經我國進口通關的國外貨款支出"]
[null,null,"Payments for goods not cleared through R.O.C. customs"]
[null,710,"委外加工貿易支出","居民國外購料委託國外加工，且貨品未經我國進口通關的貨款支出。"]
[null,null,"Payments for processing trade","Payments for goods with materials purchased and processed abroad and not cleared through R.O.C. customs."]
[null,711,"商仲貿易支出","居民購買貨品（包括原料、半成品及成品）後，不經加工直接在國外銷售，且過程中均未經我國通關，但由我國支付之貨款。"]
[null,null,"Payments for merchanting trade","Payments for purchase of merchandise (including raw materials, work-in-process and finished goods) that are sold directly abroad without further processing and never cleared through R.O.C. customs."]
["(三)",null,"支付國外但供貨來自境內之貨款"]
[null,null,"Payments for goods supplied onshore"]
[null,720,"國外訂貨但由境內供貨的貨款","付款人向國外訂貨，依照訂單或合約，其中部分貨品在境內取得，惟貨款須支付給國外，且提供相關證明文件，否則，請填報(802)。"]
[null,null,"Payments for goods ordered offshore but supplied onshore","Payments for goods ordered offshore, partly delivered onshore according to order or contract but payments made overseas, with the presentation of relevant proof documents.  If relevant proof documents are not presented, fill in“802”."]
["八",null,"其他貨款"]
[null,null,"Other payments for goods"]
[null,801,"非由付款人自行辦理進口通關的貨款(無證明文件)","匯出性質與(706)相同，但付款人無法提供證明文件之貨款，結購時累積超過新台幣50萬元以上，應計入付款人當年累積結匯金額。"]
[null,null,"Payments for imported goods with customs clearance not handled by payee (without proof documents)","The nature of outward remittance is the same of “706”, but the payee is unable to provide relevant proof documents; when accumulated settlement of foreign currency purchase exceeds NT$500,000, it should be counted into payee’s accumulated exchange settlement for the year."]
[null,802,"國外訂貨但由境內供貨的貨款(無證明文件)","匯出性質與(720)相同，但付款人無法提供證明文件之貨款，結購時累積超過新台幣50萬元以上，應計入付款人當年累積結匯金額。"]
[null,null,"Payments for goods ordered offshore but supplied onshore (without proof documents)","The nature of outward remittance is the same of “720”, but the payee is unable to provide relevant proof documents; when accumulated settlement of foreign currency purchase exceeds NT$500,000, it should be counted into payee’s accumulated exchange settlement for the year."]
[null,null,null,"V20181109"]

{"sheet":"parameter","index":2,"n_rows":19,"n_cols":4,"rows_kept":19,"cut":false,"hidden":false,"merged":[]}
["參數_header","HEADER"]
["參數_payment","PAYMENT"]
["付款類型",{"$f":"'外幣匯款(FCY_Payment)'!P1","v":"TT"}]
["扣款貨幣",{"$f":"'外幣匯款(FCY_Payment)'!D2","v":"USD"}]
["參數_0",0]
["整批或薪資(20/22)"]
["入帳貨幣","USD,EUR,HKD,SGD,JPY,GBP,AUD,NZD,CAD,CHF,CNH,CNY"]
["參數_表尾","TRAILER"]
["分隔符號",","]
["今日",{"$f":"NOW()","v":"2023-02-10T11:39:38.490"},{"$f":"TEXT(TODAY(),\"dd,mm,yyyy\")","v":"10,02,2023"},{"$f":"CONCATENATE(TEXT(TODAY(),\"ddmmyy\"),TEXT(NOW(),\"HHMM\"))","v":"1002231139"}]
[null,null,{"$f":"LEFT(B11,1)","v":""}]
["表頭",{"$f":"CONCATENATE(B1,B9,'外幣匯款(FCY_Payment)'!B2,B9,'外幣匯款(FCY_Payment)'!E2,B9,LEFT('外幣匯款(FCY_Payment)'!F2,35))","v":"HEADER,04052021,TWGTS,黛咪股份有限公司"}]
["表資料",{"$f":"CONCATENATE(B2,B9,B3,B9,'外幣匯款(FCY_Payment)'!C2,B9,B4,B9)","v":"PAYMENT,TT,602799XXXXX,USD,"}]
["表尾",{"$f":"CONCATENATE(B8,B9,'外幣匯款(FCY_Payment)'!I2,B9,'外幣匯款(FCY_Payment)'!O1)","v":"TRAILER,2,"}]
["最大處理筆數",1000]
["暫存"]
[]
[]
["亂數",{"$f":"INT(RAND()*99999)","v":50583}]

{"sheet":"操作說明(Instructions) ","index":3,"n_rows":7,"n_cols":2,"rows_kept":7,"cut":false,"hidden":false,"merged":[[0,0,0,1]]}
["上傳批次檔案5步驟說明\n如有任何問題，請洽星展企業一線通 886-2-66060302\n若無法轉檔EXCEL 2003 請至工具，巨集，安全性，把安全性層級調低即可。\n                   EXCEL 2007 請至EXCEL選項，信任中心，信任中心選項，啟用所有巨集  "]
["圖示","說明"]
[null,"1.登入IDEAL企業網路銀行\nhttps://ideal.dbs.com"]
[null,"2.點選\n>【檔案服務】進入檔案管理中心。"]
[null,"3. 將要上傳的檔案拖曳至灰底區域，或按【瀏覽檔案】選擇要上傳的txt檔案"]
[null,"4. 選擇檔案相關資訊:\n>付款方式以及檔案類型: 選擇【全部-通用檔案格式】\n>授權選項: 依照您交易要依據的授權規則選擇【依交易】或【依檔案總金額】\n>點選【確認上傳】\n\n(另外若有設定該檔案有權限的授權者才能看到, 請勾選【機密檔案】)"]
[null,"5. 上傳後即可看到檔案上傳狀態為【等待授權】。即為成功。"]